Workbook

Sheet Instructions
A1: GENERAL INSTRUCTIONS
A2: The following information entered on the Statement of Compliance will automatically populate on the Wage & Hour Record, Deduction Record and on the Fringe Record. You only have to enter this data once. Contract No: Enter the prime contract number assigned. FPID No: Enter the lead financial project ID number assigned to the referenced contract. Project Description: Enter a description of the project, including at minimum, the county or counties and state in which the project is located. Company Name: Enter the company's legal name. Company Address: Enter the company's full address. Payroll Period: Enter the payroll period commencing date. The end date automatically populates to one week following the commencing date.
A12: STATEMENT OF COMPLIANCE
A13: While the “Statement of Compliance” need not be notarized, the statement (on page 1 of this certified payroll form) is subject to the penalties provided by 18 U.S.C. § 1001, namely, a fine, possible imprisonment of not more than 5 years, or both if falsified. Accordingly, the party signing this statement should have knowledge of the facts represented as true. "Check Box" for Prime Contractor or Subcontractor: Mark the appropriate box to indicate whether it is the prime contractor or a subcontractor on the project for which certified payroll is being reported. Name and Title of Certifying Official: Print the name and official title of the contractor or subcontractor, or their agent who paid or supervised the payment of the workers under the contract during the weekly time period covered by the form. If applicable, please “check” boxes 2 through 5 certifying the accompanying statement as accurate. Boxes 2, 3 and 5 always must be checked to certify that the contractor or subcontractor completing the form is in compliance with the Davis-Bacon Related Acts (DBRA). If any worker is being paid as an apprentice during the period, box 4 must be checked and program information for each in which the contractor has registered apprentices working on the project during this payroll period must be listed on the attached Apprentice Detail sheet, with the appropriate box checked to indicate whether the apprenticeship program is registered with DOL’s Office of Apprenticeship (OA) or a State Apprenticeship Agency (SAA), and the name of the labor classification entered. If box 4 is not applicable, do not check the box and enter “Not Applicable” or “N/A” in the entry subsection, under Apprenticeship Program Name. If the contractor or subcontractor is claiming an hourly credit for their contributions to or reasonably anticipated costs of bona fide fringe benefit plans, funds, or programs, box 5 must be checked and the subsections titled “Hourly Credit for Fringe Benefits” must be completed. Use the attached Fringe Benefit Record to list each worker for whom the contractor or subcontractor claimed an hourly fringe benefit credit (this should mirror the worker names and order found on the Wage and Hour Record of the certified payroll form). In the provided columns, list each fringe benefit plan name in the top row, fringe benefit plan type in the second row, fringe benefit plan number in the third row, mark whether the fringe benefit plan is funded or unfunded in the fourth row, and state the hourly amount of credit claimed for each worker under each applicable plan in the rows below. In the last column, list the total hourly cost of fringe benefit provided for each worker. Where the contractor or subcontractor is claiming a credit for the reasonably anticipated costs of fringe benefits provided directly by the contractor (commonly referred to as an “unfunded plan”), the contractor or subcontractor must have prior approval from the Department of Labor prior to claiming such credit as required in 29 CFR 5.28. If more than three bona fide fringe benefits are provided to the workers for which the contractor is claiming a credit, submit an addendum for each providing the information requested in this section. Note: If the contractor or subcontractor is meeting its fringe benefit obligations partially through contributions to or reasonably anticipated costs of a bona fide fringe benefit plan and partially through the payment of cash in lieu of fringe benefits, the contractor or subcontractor should enter the respective amounts in this section and include remaining cash contribution as part of the hourly rate of pay. If the contractor or subcontractor is meeting its fringe benefits obligations by simply paying the cash equivalent to each worker, check the box but do not complete the subsection, because those payments will be reported as included in the hourly rate contribution to the worker.
A44: ADDITIONAL REMARKS
A45: Optional space for additional information on deductions, hourly cost of fringe benefits, or explanations. If more space is needed, please continue remarks on a separate page. If the optional space or separate pages are used, please include all contractor and project information required by the form.
A48: SIGNATURE OF CERTIFYING OFFICAL, DATE, TELEPHONE NUMBER, AND EMAIL ADDRESS
A49: The Statement of Compliance must be signed by the contractor or subcontractor, or their agent who paid or supervised the payment of the workers under the contract during the weekly time period covered by the form. Enter the phone number and email address of the individual who is signing the statement and the date signed. Legally valid electronic signatures are acceptable. A legally valid electronic signature includes any electronic process that indicates acceptance of the certified payroll record and includes an electronic method of verifying the signer’s identity. Note: Photocopies or scanned copies of signatures do not satisfy this requirement.
A54: Detailed instructions for completing the first page of Form 700-010-69 follow:
A55: Certified Payroll No.: Beginning with the number “1”, each weekly certified payroll that a contractor or subcontractor submits for a project should be given a payroll number. Enter the appropriate payroll number.
A57: “Check Box” for Submission of Final DBRA Certified Payroll Form: Mark the box to indicate that this submission is for the final week of work on the project for the contractor or subcontractor.
A59: Column (1) Employee Information: Enter each worker’s first name, middle initial if applicable, and last name; employee identifier (minimum of four digits) on each weekly certified payroll submitted, and employee type. Note: workers' full Social Security numbers must not be included as identifier. Under Work Classification, select the FDOT CRM Alias. The Labor Code and Class Code automatically populate once the alias is selected. NOTE: The Labor Classification Codes is a general list of all classifications and not specific to your contract/project.
A63: Column (2) Day of Work Week, Date, and Hours: For worker-specific entries, please enter hours worked on this project as straight time (“ST”) and overtime (“OT”) in the applicable boxes. On all contracts subject to the Contract Work Hours and Safety Standards Act (CWHSSA), enter hours worked on this project in excess of 40 hours total in the week as overtime (“OT”) (including hours worked on and off the site of the work of the covered contract). Note: For more information about compliance with overtime requirements on Federal and federally assisted contracts, please visit Overtime Pay on Government Contracts (https://www.dol.gov/agencies/whd/government-contracts/prevailing-wage-resource-book/overtime-pay-on-gov-contracts). If a worker performed work in more than one labor classification during the week, the worker must be paid at least the rate specified for the appropriate labor classification for the time actually worked in that labor classification. In such circumstances, an accurate breakdown of hours worked in each labor classification must be shown on the submitted payroll by using a separate row for each labor classification in which the worker performed work. If the contractor did not maintain an accurate breakdown of hours worked by a worker in each labor classification, the worker must be paid for all hours worked using the highest applicable prevailing wage rate (basic hourly rate and fringe benefits).
A74: Column (3) Total Hours ST/OT: The total hours for this column automatically populates from hours entered in Column 2.
A75: Column (4) Pay Rate ST/OT: Enter ST rate of pay. The OT rate of pay automatically populates based on ST entry.
A76: Column (5) Gross Pay Project/Weekly: The top cell automatically calculates the amount based on ST/OT rate. Enter the worker's gross amount earned for the workweek for hours on this Federal or federally-assisted project in the bottom cell provided (amount must be equal to or greater than the top cell). If part of the workers weekly wages were earned on projects or work other than the project described on this payroll, including non-DBRA covered projects, enter in bottom cell provided the total gross amount earned for all work performed during the week.
A79: Column (6) Total from Deductions Record: The total for this column is automatically calculated based on entries from the Deductions Record. On the attached Deductions Record, enter all deductions made from worker’s total gross amount earned for all work (Column 5). Columns are provided for entering deductions made for tax withholdings, FICA, and other deductions. Please specify other deductions by revising the cell title to identify the type of deduction. The Total Deductions column automatically calculates the total for all deductions entered for each worker. All deductions must be in accordance with the provisions of the Copeland Act Regulations, 29 CFR part 3. If a worker worked on other jobs in addition to this project, do not pro-rate the deductions; instead, show actual deductions from the worker’s weekly gross wage for all projects. Note: Except for deductions listed in 29 CFR 3.5, all deductions must have prior approval from the Department of Labor.
A85: Column (7) Employee Net Pay: The amount for this column automatically populates based on amount from Column 5 (bottom cell).
A86: Column (8) Fringe Benefits: The Total Hourly Credit from the FB Record and the Total Fringe Benefit is automatically calculated based on entries from the Fringe Record. On the attached Fringe Record, enter the fringe benefit costs for each affected worker reported on the certified payroll for the work week. Enter the fringe benefit name, type, plan number, and whether the fringe benefit is funded or unfunded.
A89: NOTE: To generate your payroll and include all sheets necessary for reporting, select all applicable tabs (Statement of Compliance, Wage & Hour Record, Deductions record, Fringe record) for printing/saving to PDF. Select File, Print Active Sheets (or Print Entire Workbook). Verify all sheets required are visible in print preview. Print and save to your preferred destination for final review and certification.

Sheet Statement of Compliance
B1: STATE OF FLORIDA DEPARTMENT OF TRANSPORTATION WAGE AND HOUR RECORD | AC1: 700-010-69
AC2: Construction
AC3: January 2026
B5: Statement of Compliance: | P5: ='Wage & Hour Record 11x17- red'!O5 -> 
B7: DATE | G7: CONTRACT NO. | M7: FPID NO. | T7: (c) EXCEPTIONS: as benefits listed in the contract except as noted in this section
T8: EXCEPTION (LABOR/CRAFT) | Z8: EXPLANATION
B9: PROJECT DESCRIPTION
Q11: Prime Contractor | R11: TRUE
B12: (Company Name) | Q12: (or)
Q13: Subcontractor | R13: FALSE
B14: (Company Address)
B15: I,
D16: (Name and Title of Certifying Official)
B17: do hereby state:
D18: (1) That I paid or supervised the payment of the laborers or mechanics working on the referenced project during the stated time period below. I certify the following:
B21: that during the payroll period commencing on
B22: and ending on | I22: =IF(I21="","",I21+6) -> 
B23: all persons employed on said project have been paid the full weekly wages earned, that no rebates or deductions have been or will be made either directly or indirectly, other than permissible deductions as defined in 29 CFR Part 3.
T24: REMARKS:
B25: The payroll information submitted with this statement is correct and complete for the above project during the above period, and the wage and fringe benefit rates paid to the workers, including credit taken for the reasonably anticipated costs of a bona fide fringe benefit plan, fund or program, are not less than the applicable wage and fringe benefits rates for the classification(s) of work actually performed, as specified in the wage determination(s) incorporated into this contract.
Y35: SIGNATURE OF CERTIFYING OFFICAL
B36: FALSE | C36: (2) All regular payrolls and all other basic records that the contractor is required to maintain for this payroll period are complete and accurate and will be made available upon request from the agency or the Department of Labor. | T36: Phone number:
B39: FALSE | C39: (3) The classifications reported for each laborer or mechanic are the classification(s) of work that each worker actually performed.
T40: Email Address:
B42: FALSE | C42: (4) Any workers paid as apprentices during the above period are duly registered in a bona fide apprenticeship program registered with the Office of Apprenticeship, Employment and Training Administration, United States Department of Labor ("OA"), or a State Apprenticeship Agency ("SAA") recognized by Department of Labor. I have verified the registered apprenticeship program, providing additional information as accurate and applicable to any apprentices identified on the attached apprenticeship detail form.
T44: THE WILLFUL FALSIFICATION OF ANY OF THE ABOVE STATEMENTS MAY SUBJECT THE CONTRACTOR OR SUBCONTRACTOR TO CIVIL OR CRIMINAL PROSECUTION (SEE SECTION 1001 OF TITLE 18 AND SECTION 3729 OF TITLE 31 OF THE UNITED STATES CODE), AS WELL AS DEBARMENT FROM FUTURE FEDERAL AND FEDERALLY-ASSISTED CONTRACTS, INFORMATION REPORTED ON CERTIFIED PAYROLLS MAY BE SUBJECT TO DISCLOSURE IN RESPONSE TO A FREEDOM OF INFORMATION ACT REQUEST.
B48: FALSE | C48: (5) Fringe benefits have been paid in cash and/or to bona fide fringe benefit plans, funds, or programs. Where the contractor is claiming an hourly credit for their contributions to or reasonably anticipated costs of a bona fide fringe benefit plan, fund, or program, provide plan information and hourly credit claimed for each worker listed on the attached Fringe Benefit Detail Report.

Sheet Wage & Hour Record 11x17- white (hidden)
B1: Wage and Hour Record: | D1: (Contractor Name & Address, Week Ending Date, Contract No. & FPID No., and Project Description retrieved from Statement of Compliance tab) | X1: Deductions and Fringe Benefits Remarks
B3: Contractor's Name: | C3: =IF('Statement of Compliance'!B11="","",'Statement of Compliance'!B11) ->  | M3: Address: | O3: =IF('Statement of Compliance'!B13="","",'Statement of Compliance'!B13) -> 
B5: Payroll Number: | C5: 1 | D5: For Week Ending: | G5: =IF('Statement of Compliance'!I22="","",'Statement of Compliance'!I22) ->  | M5: Contract No.: | O5: =IF('Statement of Compliance'!J7="","",'Statement of Compliance'!J7) ->  | Q5: Project | S5: =IF('Statement of Compliance'!G9="","",'Statement of Compliance'!G9) -> 
Q6: Description:
B7: Submission of Final DBRA Certified Payroll Form: | G7: FALSE | M7: FPID No.: | O7: =IF('Statement of Compliance'!O7="","",'Statement of Compliance'!O7) -> 
B9: (1) Employee Information | D9: Straight / Over Time | E9: (2) Day of Work Week, Date, and Hours | O9: (6) Deductions | Y9: (8) Fringe Benefit Hourly Credit ($/hr) - Fringe Benefit Cost ($/Hr times total hours on project)
B10: Name - First, MI, Last Identification No. (min 4-digits)/ Employee Type | C10: Work Classification: FDOT CRM 'Alias'/ Labor Code/ Class Code | E10: =TEXT(E12,"ddd") ->  | L10: (3) Total Hours ST/ OT | M10: (4) Pay Rate ST/ OT | N10: (5) Gross Pay Project/ Weekly | Q10: OTHER | R10: OTHER | S10: OTHER | T10: OTHER | U10: OTHER | V10: OTHER | W10: Total Deductions | X10: (7) Employee Net Pay | Y10: Metlife | Z10: United Health Care | AA10: Eddies | AB10: N/A | AC10: N/A | AD10: Total Fringe Benefit Hrly Credit / Total Cost
O11: FICA | P11: Federal Income Tax | Q11: Aflac | R11: Child Support | S11: 401K | T11: Specify Deduction | U11: Specify Deduction | V11: Specify Deduction | Y11: Insurance-Health | Z11: Insurance-Life | AA11: Insurance-Dental | AB11: Cash | AC11: Vacation/Holiday
E12: =IF(F12="","",F12-1) ->  | K12: =IF('Statement of Compliance'!I22="","",'Statement of Compliance'!I22) ->  | Y12: 87-16224 | Z12: 569953-c | AA12: DEN882-1 | AB12: N/A | AC12: N/A
Y13: Funded | Z13: Funded | AA13: Funded | AB13: Unfunded | AC13: Funded
A14: 1 | B14: Johnny A. Seed | C14: CEMENT MASON | D14: ST | E14: 8 | F14: 8 | G14: 8 | J14: 8 | K14: 8 | L14: =SUM(E14:K14) -> 40 | M14: 15 | N14: =ROUND(SUM(L14*M14+(L17*M17)),2) -> 780 | O14: 53.13 | P14: 58.38 | Q14: 36 | R14: 96.42 | S14: 120 | T14: 0 | U14: 0 | V14: 0 | W14: =SUM(O14:V14) -> 363.93 | X14: =IF(N17=0,N14-W14,N17-W14) -> 416.07 | Y14: 1.73 | Z14: 0.46 | AA14: 0.26 | AB14: 1 | AC14: 0.6 | AD14: =SUM(Y14:AC14) -> 4.05
B16: 0269 | C16: =IF(C14="Select Labor Code","",VLOOKUP(C14,'Labor Classification Codes'!$A$3:$C$554,2,FALSE)) -> CRAFTMAN
D17: OT | H17: 8 | L17: =SUM(E17:K17) -> 8 | M17: =ROUND(M14*1.5,2) -> 22.5 | N17: 0 | Y17: =IF($L14=0,0,Y14*($L14+$L17)) -> 83.04 | Z17: =IF($L14=0,0,Z14*($L14+$L17)) -> 22.08 | AA17: 12.48 | AB17: 48 | AC17: =IF($L14=0,0,AC14*($L14+$L17)) -> 28.8 | AD17: =SUM(Y17:AC17) -> 194.4
B18: Journeyworker | C18: =IF(C14="Select Labor Code","",VLOOKUP(C14,'Labor Classification Codes'!$A$3:$C$554,3,FALSE)) -> CEMENT MASON
A20: =A14+1 -> 2 | B20: Jackson T. Brown | C20: BLOCK MASON | D20: ST | L20: =SUM(E20:K20) -> 0 | M20: 16.5 | N20: =ROUND(SUM(L20*M20+(L23*M23)),2) -> 0 | O20: 0 | P20: 0 | Q20: 0 | R20: 0 | S20: 0 | T20: 0 | U20: 0 | V20: 0 | W20: =SUM(O20:V20) -> 0 | X20: =IF(N23=0,N20-W20,N23-W20) -> 0 | Y20: 0 | Z20: 0 | AA20: 0 | AB20: 0 | AC20: 0 | AD20: =SUM(Y20:AC20) -> 0
B22: 8976 | C22: =IF(C20="Select Labor Code","",VLOOKUP(C20,'Labor Classification Codes'!$A$3:$C$554,2,FALSE)) -> CRAFTMAN
D23: OT | L23: =SUM(E23:K23) -> 0 | M23: =ROUND(M20*1.5,2) -> 24.75 | N23: 0 | Y23: =IF($L20=0,0,Y20*($L20+$L23)) -> 0 | Z23: =IF($L20=0,0,Z20*($L20+$L23)) -> 0 | AA23: 0 | AB23: 0 | AC23: 0 | AD23: =SUM(Y23:AC23) -> 0
B24: Journeyworker | C24: =IF(C20="Select Labor Code","",VLOOKUP(C20,'Labor Classification Codes'!$A$3:$C$554,3,FALSE)) -> CEMENT MASON
A26: =A20+1 -> 3 | B26: Helen O. Troy | C26: BRICKLAYER | D26: ST | L26: =SUM(E26:K26) -> 0 | M26: 22.8 | N26: =ROUND(SUM(L26*M26+(L29*M29)),2) -> 0 | O26: 0 | P26: 0 | Q26: 0 | R26: 0 | S26: 0 | T26: 0 | U26: 0 | V26: 0 | W26: =SUM(O26:V26) -> 0 | X26: =IF(N29=0,N26-W26,N29-W26) -> 0 | Y26: 0 | Z26: 0 | AA26: 0 | AB26: 0 | AC26: 0 | AD26: =SUM(Y26:AC26) -> 0
B28: 1137 | C28: =IF(C26="Select Labor Code","",VLOOKUP(C26,'Labor Classification Codes'!$A$3:$C$554,2,FALSE)) -> CRAFTMAN
D29: OT | L29: =SUM(E29:K29) -> 0 | M29: =ROUND(M26*1.5,2) -> 34.2 | N29: 0 | Y29: =IF($L26=0,0,Y26*($L26+$L29)) -> 0 | Z29: =IF($L26=0,0,Z26*($L26+$L29)) -> 0 | AA29: 0 | AB29: 0 | AC29: 0 | AD29: =SUM(Y29:AC29) -> 0
B30: Registered Apprentice | C30: =IF(C26="Select Labor Code","",VLOOKUP(C26,'Labor Classification Codes'!$A$3:$C$554,3,FALSE)) -> CEMENT MASON
A32: =A26+1 -> 4 | B32: Skyler D. White | C32: MASON | D32: ST | L32: =SUM(E32:K32) -> 0 | M32: 17.23 | N32: =ROUND(SUM(L32*M32+(L35*M35)),2) -> 0 | O32: 0 | P32: 0 | Q32: 0 | R32: 0 | S32: 0 | T32: 0 | U32: 0 | V32: 0 | W32: =SUM(O32:V32) -> 0 | X32: =IF(N35=0,N32-W32,N35-W32) -> 0 | Y32: 0 | Z32: 0 | AA32: 0 | AB32: 0 | AC32: 0 | AD32: =SUM(Y32:AC32) -> 0
B34: 568722 | C34: =IF(C32="Select Labor Code","",VLOOKUP(C32,'Labor Classification Codes'!$A$3:$C$554,2,FALSE)) -> CRAFTMAN
D35: OT | L35: =SUM(E35:K35) -> 0 | M35: =ROUND(M32*1.5,2) -> 25.85 | N35: 0 | Y35: =IF($L32=0,0,Y32*($L32+$L35)) -> 0 | Z35: =IF($L32=0,0,Z32*($L32+$L35)) -> 0 | AA35: 0 | AB35: 0 | AC35: 0 | AD35: =SUM(Y35:AC35) -> 0
B36: Journeyworker | C36: =IF(C32="Select Labor Code","",VLOOKUP(C32,'Labor Classification Codes'!$A$3:$C$554,3,FALSE)) -> CEMENT MASON
A38: =A32+1 -> 5 | B38: Troy B. Atkins | C38: CEMENT MASON | D38: ST | L38: =SUM(E38:K38) -> 0 | M38: 32.14 | N38: =ROUND(SUM(L38*M38+(L41*M41)),2) -> 0 | O38: 0 | P38: 0 | Q38: 0 | R38: 0 | S38: 0 | T38: 0 | U38: 0 | V38: 0 | W38: =SUM(O38:V38) -> 0 | X38: =IF(N41=0,N38-W38,N41-W38) -> 0 | Y38: 0 | Z38: 0 | AA38: 0 | AB38: 0 | AC38: 0 | AD38: =SUM(Y38:AC38) -> 0
B40: 000689 | C40: =IF(C38="Select Labor Code","",VLOOKUP(C38,'Labor Classification Codes'!$A$3:$C$554,2,FALSE)) -> CRAFTMAN
D41: OT | L41: =SUM(E41:K41) -> 0 | M41: =ROUND(M38*1.5,2) -> 48.21 | N41: 0 | Y41: =IF($L38=0,0,Y38*($L38+$L41)) -> 0 | Z41: =IF($L38=0,0,Z38*($L38+$L41)) -> 0 | AA41: 0 | AB41: 0 | AC41: 0 | AD41: =SUM(Y41:AC41) -> 0
B42: Journeyworker | C42: =IF(C38="Select Labor Code","",VLOOKUP(C38,'Labor Classification Codes'!$A$3:$C$554,3,FALSE)) -> CEMENT MASON
A44: =A38+1 -> 6 | B44: Jane M. Marble | C44: MASONBRICKLAYER | D44: ST | L44: =SUM(E44:K44) -> 0 | M44: 27.77 | N44: =ROUND(SUM(L44*M44+(L47*M47)),2) -> 0 | O44: 0 | P44: 0 | Q44: 0 | R44: 0 | S44: 0 | T44: 0 | U44: 0 | V44: 0 | W44: =SUM(O44:V44) -> 0 | X44: =IF(N47=0,N44-W44,N47-W44) -> 0 | Y44: 0 | Z44: 0 | AA44: 0 | AB44: 0 | AC44: 0 | AD44: =SUM(Y44:AC44) -> 0
B46: 1976 | C46: =IF(C44="Select Labor Code","",VLOOKUP(C44,'Labor Classification Codes'!$A$3:$C$554,2,FALSE)) -> CRAFTMAN
D47: OT | L47: =SUM(E47:K47) -> 0 | M47: =ROUND(M44*1.5,2) -> 41.66 | N47: 0 | Y47: =IF($L44=0,0,Y44*($L44+$L47)) -> 0 | Z47: =IF($L44=0,0,Z44*($L44+$L47)) -> 0 | AA47: 0 | AB47: 0 | AC47: 0 | AD47: =SUM(Y47:AC47) -> 0
B48: On-the-Job Training | C48: =IF(C44="Select Labor Code","",VLOOKUP(C44,'Labor Classification Codes'!$A$3:$C$554,3,FALSE)) -> CEMENT MASON
A50: =A44+1 -> 7 | C50: Select FDOT 'Alias' | D50: ST | L50: =SUM(E50:K50) -> 0 | M50: 0 | N50: =ROUND(SUM(L50*M50+(L53*M53)),2) -> 0 | O50: 0 | P50: 0 | Q50: 0 | R50: 0 | S50: 0 | T50: 0 | U50: 0 | V50: 0 | W50: =SUM(O50:V50) -> 0 | X50: =IF(N53=0,N50-W50,N53-W50) -> 0 | Y50: 0 | Z50: 0 | AA50: 0 | AB50: 0 | AC50: 0 | AD50: =SUM(Y50:AC50) -> 0
C52: =IF(C50="Select Labor Code","",VLOOKUP(C50,'Labor Classification Codes'!$A$3:$C$554,2,FALSE)) -> 
D53: OT | L53: =SUM(E53:K53) -> 0 | M53: =ROUND(M50*1.5,2) -> 0 | N53: 0 | Y53: =IF($L50=0,0,Y50*($L50+$L53)) -> 0 | Z53: =IF($L50=0,0,Z50*($L50+$L53)) -> 0 | AA53: 0 | AB53: 0 | AC53: 0 | AD53: =SUM(Y53:AC53) -> 0
B54: Select Employee Type | C54: =IF(C50="Select Labor Code","",VLOOKUP(C50,'Labor Classification Codes'!$A$3:$C$554,3,FALSE)) -> 
A56: =A50+1 -> 8 | C56: Select FDOT 'Alias' | D56: ST | L56: =SUM(E56:K56) -> 0 | M56: 0 | N56: =ROUND(SUM(L56*M56+(L59*M59)),2) -> 0 | O56: 0 | P56: 0 | Q56: 0 | R56: 0 | S56: 0 | T56: 0 | U56: 0 | V56: 0 | W56: =SUM(O56:V56) -> 0 | X56: =IF(N59=0,N56-W56,N59-W56) -> 0 | Y56: 0 | Z56: 0 | AA56: 0 | AB56: 0 | AC56: 0 | AD56: =SUM(Y56:AC56) -> 0
C58: =IF(C56="Select Labor Code","",VLOOKUP(C56,'Labor Classification Codes'!$A$3:$C$554,2,FALSE)) -> 
D59: OT | L59: =SUM(E59:K59) -> 0 | M59: =ROUND(M56*1.5,2) -> 0 | N59: 0 | Y59: =IF($L56=0,0,Y56*($L56+$L59)) -> 0 | Z59: =IF($L56=0,0,Z56*($L56+$L59)) -> 0 | AA59: 0 | AB59: 0 | AC59: 0 | AD59: =SUM(Y59:AC59) -> 0
B60: Select Employee Type | C60: =IF(C56="Select Labor Code","",VLOOKUP(C56,'Labor Classification Codes'!$A$3:$C$554,3,FALSE)) -> 

Sheet Wage & Hour Record 11x17- red (hidden)
B1: Wage and Hour Record: | D1: (Contractor Name & Address, Week Ending Date, Contract No. & FPID No., and Project Description retrieved from Statement of Compliance tab) | X1: Deductions and Fringe Benefits Remarks
B3: Contractor's Name: | C3: =IF('Statement of Compliance'!B11="","",'Statement of Compliance'!B11) ->  | M3: Address: | O3: =IF('Statement of Compliance'!B13="","",'Statement of Compliance'!B13) -> 
B5: Payroll Number: | C5: 1 | D5: For Week Ending: | G5: =IF('Statement of Compliance'!I22="","",'Statement of Compliance'!I22) ->  | M5: Contract No.: | O5: =IF('Statement of Compliance'!J7="","",'Statement of Compliance'!J7) ->  | Q5: Project | S5: =IF('Statement of Compliance'!G9="","",'Statement of Compliance'!G9) -> 
Q6: Description:
B7: Submission of Final DBRA Certified Payroll Form: | G7: FALSE | M7: FPID No.: | O7: =IF('Statement of Compliance'!O7="","",'Statement of Compliance'!O7) -> 
B9: (1) Employee Information | D9: Straight / Over Time | E9: (2) Day of Work Week, Date, and Hours | O9: (6) Deductions | Y9: (8) Fringe Benefits
B10: Name - First, MI, Last Identification No. (min 4-digits)/ Employee Type | C10: Work Classification: FDOT CRM 'Alias'/ Labor Code/ Class Code | E10: =TEXT(E12,"ddd") ->  | L10: (3) Total Hours ST/ OT | M10: (4) Pay Rate ST/ OT | N10: (5) Gross Pay Project/ Weekly | Q10: OTHER | R10: OTHER | S10: OTHER | T10: OTHER | U10: OTHER | V10: OTHER | W10: Total Deductions | X10: (7) Employee Net Pay | Y10: Metlife | Z10: United Health Care | AA10: Specify FB Name | AB10: Specify FB Name | AC10: Total Fringe Benefit | AD10: Fringe Benefit Hourly Credit
O11: FICA | P11: Federal Income Tax | Q11: Aflac | R11: Child Support | S11: 401K Deduction | T11: Specify Deduction | U11: Specify Deduction | V11: Specify Deduction | Y11: Insurance-Dental | Z11: Insurance-Health | AA11: Select FB Type | AB11: Select FB Type
E12: =IF(F12="","",F12-1) ->  | K12: =IF('Statement of Compliance'!I22="","",'Statement of Compliance'!I22) ->  | Y12: 87-16224 | Z12: 569953-c | AA12: Specify FB Plan # | AB12: Specify FB Plan #
Y13: Unfunded | Z13: Funded | AA13: Funded | AB13: Unfunded
A14: 1 | B14: Johnny A. Seed | C14: CEMENT MASON | D14: ST | E14: 8 | F14: 8 | G14: 8 | J14: 8 | K14: 8 | L14: =SUM(E14:K14) -> 40 | M14: 15 | N14: =ROUND(SUM(L14*M14+(L17*M17)),2) -> 600 | O14: 53.13 | P14: 58.38 | Q14: 36 | R14: 96.42 | S14: 0 | T14: 0 | U14: 0 | V14: 0 | W14: =SUM(O14:V14) -> 243.93 | X14: =IF(N17=0,N14-W14,N17-W14) -> 756.07 | Y14: 10.46 | Z14: 124.8 | AA14: 0 | AB14: 0 | AC14: =SUM(Y14:AB19) -> 135.26 | AD14: =ROUND(IF(AC14=0,0,IF(L14=0,0,AC14/(L14+L17))),2) -> 3.38
B16: 0269 | C16: =IF(C14="Select Labor Code","",VLOOKUP(C14,'Labor Classification Codes'!$A$3:$C$554,2,FALSE)) -> CRAFTMAN
D17: OT | L17: =SUM(E17:K17) -> 0 | M17: =ROUND(M14*1.5,2) -> 22.5 | N17: 1000
B18: Journeyworker | C18: =IF(C14="Select Labor Code","",VLOOKUP(C14,'Labor Classification Codes'!$A$3:$C$554,3,FALSE)) -> CEMENT MASON
A20: =A14+1 -> 2 | B20: Jackson T. Brown | C20: BLOCK MASON | D20: ST | L20: =SUM(E20:K20) -> 0 | M20: 16.5 | N20: =ROUND(SUM(L20*M20+(L23*M23)),2) -> 0 | O20: 0 | P20: 0 | Q20: 0 | R20: 0 | S20: 0 | T20: 0 | U20: 0 | V20: 0 | W20: =SUM(O20:V20) -> 0 | X20: =IF(N23=0,N20-W20,N23-W20) -> 0 | Y20: 0 | Z20: 0 | AA20: 0 | AB20: 0 | AC20: =SUM(Y20:AB25) -> 0 | AD20: =ROUND(IF(AC20=0,0,IF(L20=0,0,AC20/(L20+L23))),2) -> 0
B22: 8976 | C22: =IF(C20="Select Labor Code","",VLOOKUP(C20,'Labor Classification Codes'!$A$3:$C$554,2,FALSE)) -> CRAFTMAN
D23: OT | L23: =SUM(E23:K23) -> 0 | M23: =ROUND(M20*1.5,2) -> 24.75 | N23: 0
B24: Journeyworker | C24: =IF(C20="Select Labor Code","",VLOOKUP(C20,'Labor Classification Codes'!$A$3:$C$554,3,FALSE)) -> CEMENT MASON
A26: =A20+1 -> 3 | B26: Helen O. Troy | C26: BRICKLAYER | D26: ST | L26: =SUM(E26:K26) -> 0 | M26: 22.8 | N26: =ROUND(SUM(L26*M26+(L29*M29)),2) -> 0 | O26: 0 | P26: 0 | Q26: 0 | R26: 0 | S26: 0 | T26: 0 | U26: 0 | V26: 0 | W26: =SUM(O26:V26) -> 0 | X26: =IF(N29=0,N26-W26,N29-W26) -> 0 | Y26: 0 | Z26: 0 | AA26: 0 | AB26: 0 | AC26: =SUM(Y26:AB31) -> 0 | AD26: =ROUND(IF(AC26=0,0,IF(L26=0,0,AC26/(L26+L29))),2) -> 0
B28: 1137 | C28: =IF(C26="Select Labor Code","",VLOOKUP(C26,'Labor Classification Codes'!$A$3:$C$554,2,FALSE)) -> CRAFTMAN
D29: OT | L29: =SUM(E29:K29) -> 0 | M29: =ROUND(M26*1.5,2) -> 34.2 | N29: 0
B30: Registered Apprentice | C30: =IF(C26="Select Labor Code","",VLOOKUP(C26,'Labor Classification Codes'!$A$3:$C$554,3,FALSE)) -> CEMENT MASON
A32: =A26+1 -> 4 | B32: Skyler D. White | C32: MASON | D32: ST | L32: =SUM(E32:K32) -> 0 | M32: 17.23 | N32: =ROUND(SUM(L32*M32+(L35*M35)),2) -> 0 | O32: 0 | P32: 0 | Q32: 0 | R32: 0 | S32: 0 | T32: 0 | U32: 0 | V32: 0 | W32: =SUM(O32:V32) -> 0 | X32: =IF(N35=0,N32-W32,N35-W32) -> 0 | Y32: 0 | Z32: 0 | AA32: 0 | AB32: 0 | AC32: =SUM(Y32:AB37) -> 0 | AD32: =ROUND(IF(AC32=0,0,IF(L32=0,0,AC32/(L32+L35))),2) -> 0
B34: 568722 | C34: =IF(C32="Select Labor Code","",VLOOKUP(C32,'Labor Classification Codes'!$A$3:$C$554,2,FALSE)) -> CRAFTMAN
D35: OT | L35: =SUM(E35:K35) -> 0 | M35: =ROUND(M32*1.5,2) -> 25.85 | N35: 0
B36: Journeyworker | C36: =IF(C32="Select Labor Code","",VLOOKUP(C32,'Labor Classification Codes'!$A$3:$C$554,3,FALSE)) -> CEMENT MASON
A38: =A32+1 -> 5 | B38: Troy B. Atkins | C38: CEMENT MASON | D38: ST | L38: =SUM(E38:K38) -> 0 | M38: 32.14 | N38: =ROUND(SUM(L38*M38+(L41*M41)),2) -> 0 | O38: 0 | P38: 0 | Q38: 0 | R38: 0 | S38: 0 | T38: 0 | U38: 0 | V38: 0 | W38: =SUM(O38:V38) -> 0 | X38: =IF(N41=0,N38-W38,N41-W38) -> 0 | Y38: 0 | Z38: 0 | AA38: 0 | AB38: 0 | AC38: =SUM(Y38:AB43) -> 0 | AD38: =ROUND(IF(AC38=0,0,IF(L38=0,0,AC38/(L38+L41))),2) -> 0
B40: 000689 | C40: =IF(C38="Select Labor Code","",VLOOKUP(C38,'Labor Classification Codes'!$A$3:$C$554,2,FALSE)) -> CRAFTMAN
D41: OT | L41: =SUM(E41:K41) -> 0 | M41: =ROUND(M38*1.5,2) -> 48.21 | N41: 0
B42: Journeyworker | C42: =IF(C38="Select Labor Code","",VLOOKUP(C38,'Labor Classification Codes'!$A$3:$C$554,3,FALSE)) -> CEMENT MASON
A44: =A38+1 -> 6 | B44: Jane M. Marble | C44: MASONBRICKLAYER | D44: ST | L44: =SUM(E44:K44) -> 0 | M44: 27.77 | N44: =ROUND(SUM(L44*M44+(L47*M47)),2) -> 0 | O44: 0 | P44: 0 | Q44: 0 | R44: 0 | S44: 0 | T44: 0 | U44: 0 | V44: 0 | W44: =SUM(O44:V44) -> 0 | X44: =IF(N47=0,N44-W44,N47-W44) -> 0 | Y44: 0 | Z44: 0 | AA44: 0 | AB44: 0 | AC44: =SUM(Y44:AB49) -> 0 | AD44: =ROUND(IF(AC44=0,0,IF(L44=0,0,AC44/(L44+L47))),2) -> 0
B46: 1976 | C46: =IF(C44="Select Labor Code","",VLOOKUP(C44,'Labor Classification Codes'!$A$3:$C$554,2,FALSE)) -> CRAFTMAN
D47: OT | L47: =SUM(E47:K47) -> 0 | M47: =ROUND(M44*1.5,2) -> 41.66 | N47: 0
B48: On-the-Job Training | C48: =IF(C44="Select Labor Code","",VLOOKUP(C44,'Labor Classification Codes'!$A$3:$C$554,3,FALSE)) -> CEMENT MASON
A50: =A44+1 -> 7 | C50: Select FDOT 'Alias' | D50: ST | L50: =SUM(E50:K50) -> 0 | M50: 0 | N50: =ROUND(SUM(L50*M50+(L53*M53)),2) -> 0 | O50: 0 | P50: 0 | Q50: 0 | R50: 0 | S50: 0 | T50: 0 | U50: 0 | V50: 0 | W50: =SUM(O50:V50) -> 0 | X50: =IF(N53=0,N50-W50,N53-W50) -> 0 | Y50: 0 | Z50: 0 | AA50: 0 | AB50: 0 | AC50: =SUM(Y50:AB55) -> 0 | AD50: =ROUND(IF(AC50=0,0,IF(L50=0,0,AC50/(L50+L53))),2) -> 0
C52: =IF(C50="Select Labor Code","",VLOOKUP(C50,'Labor Classification Codes'!$A$3:$C$554,2,FALSE)) -> 
D53: OT | L53: =SUM(E53:K53) -> 0 | M53: =ROUND(M50*1.5,2) -> 0 | N53: 0
B54: Select Employee Type | C54: =IF(C50="Select Labor Code","",VLOOKUP(C50,'Labor Classification Codes'!$A$3:$C$554,3,FALSE)) -> 
A56: =A50+1 -> 8 | C56: Select FDOT 'Alias' | D56: ST | L56: =SUM(E56:K56) -> 0 | M56: 0 | N56: =ROUND(SUM(L56*M56+(L59*M59)),2) -> 0 | O56: 0 | P56: 0 | Q56: 0 | R56: 0 | S56: 0 | T56: 0 | U56: 0 | V56: 0 | W56: =SUM(O56:V56) -> 0 | X56: =IF(N59=0,N56-W56,N59-W56) -> 0 | Y56: 0 | Z56: 0 | AA56: 0 | AB56: 0 | AC56: =SUM(Y56:AB61) -> 0 | AD56: =ROUND(IF(AC56=0,0,IF(L56=0,0,AC56/(L56+L59))),2) -> 0
C58: =IF(C56="Select Labor Code","",VLOOKUP(C56,'Labor Classification Codes'!$A$3:$C$554,2,FALSE)) -> 
D59: OT | L59: =SUM(E59:K59) -> 0 | M59: =ROUND(M56*1.5,2) -> 0 | N59: 0
B60: Select Employee Type | C60: =IF(C56="Select Labor Code","",VLOOKUP(C56,'Labor Classification Codes'!$A$3:$C$554,3,FALSE)) -> 

Sheet Wage & Hour Record
B1: Wage and Hour Record: | F1: (Contractor Name & Address, Week Ending Date, Contract No. & FPID No., and Project Description retrieved from Statement of Compliance tab)
B3: Contractor's Name: | C3: =IF('Statement of Compliance'!B11="","",'Statement of Compliance'!B11) ->  | J3: Address: | L3: =IF('Statement of Compliance'!B13="","",'Statement of Compliance'!B13) -> 
B5: Payroll Number: | D5: For Week Ending: | G5: =IF('Statement of Compliance'!I22="","",'Statement of Compliance'!I22) ->  | J5: Contract No.: | L5: =IF('Statement of Compliance'!J7="","",'Statement of Compliance'!J7) ->  | N5: Project | P5: =IF('Statement of Compliance'!G9="","",'Statement of Compliance'!G9) -> 
N6: Description:
B7: Submission of Final DBRA Certified Payroll Form: | G7: FALSE | J7: FPID No.: | L7: =IF('Statement of Compliance'!O7="","",'Statement of Compliance'!O7) -> 
B9: (1) Employee Information | D9: Straight / Over Time | E9: (2) Day of Work Week, Date, and Hours | Q9: (8) Fridge Benefits
B10: Name - First, MI, Last Identification No. (min 4-digits)/ Employee Type | C10: Work Classification: FDOT CRM 'Alias'/ Labor Code/ Class Code | E10: =TEXT(E12,"ddd") ->  | L10: (3) Total Hours ST/ OT | M10: (4) Pay Rate ST/ OT | N10: (5) Gross Pay Project/ Weekly | O10: (6) Total from Deductions Record | P10: (7) Employee Net Pay | Q10: Total Hourly Credit from FB Record | R10: Total Fringe Benefit
E12: =IF(F12="","",F12-1) ->  | K12: =IF(ISBLANK(G5),"",G5) -> 
A14: 1 | C14: Select FDOT 'Alias' | D14: ST | L14: =SUM(E14:K14) -> 0 | N14: =ROUND((L14*M14)+(L17*M17),2) -> 0 | O14: ='Deduction Record'!O10 -> 0 | P14: =IF(N17=0,0,N17-O14) -> 0 | Q14: ='Fringe Record'!S12 -> 0 | R14: =ROUND(IF(Q14=0,0,IF(L14=0,0,Q14*(L14+L17))),2) -> 0
C16: =IF(C14="Select Labor Code","",VLOOKUP(C14,'Labor Classification Codes'!$A$3:$C$554,2,FALSE)) -> 
D17: OT | L17: =SUM(E17:K17) -> 0 | M17: =ROUND(M14*1.5,2) -> 0 | N17: 0
B18: Select Employee Type | C18: =IF(C14="Select Labor Code","",VLOOKUP(C14,'Labor Classification Codes'!$A$3:$C$554,3,FALSE)) -> 
A20: =A14+1 -> 2 | C20: Select FDOT 'Alias' | D20: ST | L20: =SUM(E20:K20) -> 0 | M20: 0 | N20: =ROUND((L20*M20)+(L23*M23),2) -> 0 | O20: ='Deduction Record'!O11 -> 0 | P20: =IF(N23=0,0,N23-O20) -> 0 | Q20: ='Fringe Record'!S13 -> 0 | R20: =ROUND(IF(Q20=0,0,IF(L20=0,0,Q20*(L20+L23))),2) -> 0
C22: =IF(C20="Select Labor Code","",VLOOKUP(C20,'Labor Classification Codes'!$A$3:$C$554,2,FALSE)) -> 
D23: OT | L23: =SUM(E23:K23) -> 0 | M23: =ROUND(M20*1.5,2) -> 0 | N23: 0
B24: Select Employee Type | C24: =IF(C20="Select Labor Code","",VLOOKUP(C20,'Labor Classification Codes'!$A$3:$C$554,3,FALSE)) -> 
A26: =A20+1 -> 3 | C26: Select FDOT 'Alias' | D26: ST | L26: =SUM(E26:K26) -> 0 | M26: 0 | N26: =ROUND((L26*M26)+(L29*M29),2) -> 0 | O26: ='Deduction Record'!O12 -> 0 | P26: =IF(N29=0,0,N29-O26) -> 0 | Q26: ='Fringe Record'!S14 -> 0 | R26: =ROUND(IF(Q26=0,0,IF(L26=0,0,Q26*(L26+L29))),2) -> 0
C28: =IF(C26="Select Labor Code","",VLOOKUP(C26,'Labor Classification Codes'!$A$3:$C$554,2,FALSE)) -> 
D29: OT | L29: =SUM(E29:K29) -> 0 | M29: =ROUND(M26*1.5,2) -> 0 | N29: 0
B30: Select Employee Type | C30: =IF(C26="Select Labor Code","",VLOOKUP(C26,'Labor Classification Codes'!$A$3:$C$554,3,FALSE)) -> 
A32: =A26+1 -> 4 | C32: Select FDOT 'Alias' | D32: ST | L32: =SUM(E32:K32) -> 0 | M32: 0 | N32: =ROUND((L32*M32)+(L35*M35),2) -> 0 | O32: ='Deduction Record'!O13 -> 0 | P32: =IF(N35=0,0,N35-O32) -> 0 | Q32: ='Fringe Record'!S15 -> 0 | R32: =ROUND(IF(Q32=0,0,IF(L32=0,0,Q32*(L32+L35))),2) -> 0
C34: =IF(C32="Select Labor Code","",VLOOKUP(C32,'Labor Classification Codes'!$A$3:$C$554,2,FALSE)) -> 
D35: OT | L35: =SUM(E35:K35) -> 0 | M35: =ROUND(M32*1.5,2) -> 0 | N35: 0
B36: Select Employee Type | C36: =IF(C32="Select Labor Code","",VLOOKUP(C32,'Labor Classification Codes'!$A$3:$C$554,3,FALSE)) -> 
A38: =A32+1 -> 5 | C38: Select FDOT 'Alias' | D38: ST | L38: =SUM(E38:K38) -> 0 | M38: 0 | N38: =ROUND((L38*M38)+(L41*M41),2) -> 0 | O38: ='Deduction Record'!O14 -> 0 | P38: =IF(N41=0,0,N41-O38) -> 0 | Q38: ='Fringe Record'!S16 -> 0 | R38: =ROUND(IF(Q38=0,0,IF(L38=0,0,Q38*(L38+L41))),2) -> 0
C40: =IF(C38="Select Labor Code","",VLOOKUP(C38,'Labor Classification Codes'!$A$3:$C$554,2,FALSE)) -> 
D41: OT | L41: =SUM(E41:K41) -> 0 | M41: =ROUND(M38*1.5,2) -> 0 | N41: 0
B42: Select Employee Type | C42: =IF(C38="Select Labor Code","",VLOOKUP(C38,'Labor Classification Codes'!$A$3:$C$554,3,FALSE)) -> 
A44: =A38+1 -> 6 | C44: Select FDOT 'Alias' | D44: ST | L44: =SUM(E44:K44) -> 0 | M44: 0 | N44: =ROUND((L44*M44)+(L47*M47),2) -> 0 | O44: ='Deduction Record'!O15 -> 0 | P44: =IF(N47=0,0,N47-O44) -> 0 | Q44: ='Fringe Record'!S17 -> 0 | R44: =ROUND(IF(Q44=0,0,IF(L44=0,0,Q44*(L44+L47))),2) -> 0
C46: =IF(C44="Select Labor Code","",VLOOKUP(C44,'Labor Classification Codes'!$A$3:$C$554,2,FALSE)) -> 
D47: OT | L47: =SUM(E47:K47) -> 0 | M47: =ROUND(M44*1.5,2) -> 0 | N47: 0
B48: Select Employee Type | C48: =IF(C44="Select Labor Code","",VLOOKUP(C44,'Labor Classification Codes'!$A$3:$C$554,3,FALSE)) -> 
A50: =A44+1 -> 7 | C50: Select FDOT 'Alias' | D50: ST | L50: =SUM(E50:K50) -> 0 | M50: 0 | N50: =ROUND((L50*M50)+(L53*M53),2) -> 0 | O50: ='Deduction Record'!O16 -> 0 | P50: =IF(N53=0,0,N53-O50) -> 0 | Q50: ='Fringe Record'!S18 -> 0 | R50: =ROUND(IF(Q50=0,0,IF(L50=0,0,Q50*(L50+L53))),2) -> 0
C52: =IF(C50="Select Labor Code","",VLOOKUP(C50,'Labor Classification Codes'!$A$3:$C$554,2,FALSE)) -> 
D53: OT | L53: =SUM(E53:K53) -> 0 | M53: =ROUND(M50*1.5,2) -> 0 | N53: 0
B54: Select Employee Type | C54: =IF(C50="Select Labor Code","",VLOOKUP(C50,'Labor Classification Codes'!$A$3:$C$554,3,FALSE)) -> 
A56: =A50+1 -> 8 | C56: Select FDOT 'Alias' | D56: ST | L56: =SUM(E56:K56) -> 0 | M56: 0 | N56: =ROUND((L56*M56)+(L59*M59),2) -> 0 | O56: ='Deduction Record'!O17 -> 0 | P56: =IF(N59=0,0,N59-O56) -> 0 | Q56: ='Fringe Record'!S19 -> 0 | R56: =ROUND(IF(Q56=0,0,IF(L56=0,0,Q56*(L56+L59))),2) -> 0
C58: =IF(C56="Select Labor Code","",VLOOKUP(C56,'Labor Classification Codes'!$A$3:$C$554,2,FALSE)) -> 
D59: OT | L59: =SUM(E59:K59) -> 0 | M59: =ROUND(M56*1.5,2) -> 0 | N59: 0
B60: Select Employee Type | C60: =IF(C56="Select Labor Code","",VLOOKUP(C56,'Labor Classification Codes'!$A$3:$C$554,3,FALSE)) -> 
A62: =A56+1 -> 9 | C62: Select FDOT 'Alias' | D62: ST | L62: =SUM(E62:K62) -> 0 | M62: 0 | N62: =ROUND((L62*M62)+(L65*M65),2) -> 0 | O62: ='Deduction Record'!O18 -> 0.23 | P62: =IF(N65=0,0,N65-O62) -> 0 | Q62: ='Fringe Record'!S20 -> 0 | R62: =ROUND(IF(Q62=0,0,IF(L62=0,0,Q62*(L62+L65))),2) -> 0
C64: =IF(C62="Select Labor Code","",VLOOKUP(C62,'Labor Classification Codes'!$A$3:$C$554,2,FALSE)) -> 
D65: OT | L65: =SUM(E65:K65) -> 0 | M65: =ROUND(M62*1.5,2) -> 0 | N65: 0
B66: Select Employee Type | C66: =IF(C62="Select Labor Code","",VLOOKUP(C62,'Labor Classification Codes'!$A$3:$C$554,3,FALSE)) -> 
A68: =A62+1 -> 10 | C68: Select FDOT 'Alias' | D68: ST | L68: =SUM(E68:K68) -> 0 | M68: 0 | N68: =ROUND((L68*M68)+(L71*M71),2) -> 0 | O68: ='Deduction Record'!O19 -> 0 | P68: =IF(N71=0,0,N71-O68) -> 0 | Q68: ='Fringe Record'!S21 -> 0 | R68: =ROUND(IF(Q68=0,0,IF(L68=0,0,Q68*(L68+L71))),2) -> 0
C70: =IF(C68="Select Labor Code","",VLOOKUP(C68,'Labor Classification Codes'!$A$3:$C$554,2,FALSE)) -> 
D71: OT | L71: =SUM(E71:K71) -> 0 | M71: =ROUND(M68*1.5,2) -> 0 | N71: 0
B72: Select Employee Type | C72: =IF(C68="Select Labor Code","",VLOOKUP(C68,'Labor Classification Codes'!$A$3:$C$554,3,FALSE)) -> 
A74: =A68+1 -> 11 | C74: Select FDOT 'Alias' | D74: ST | L74: =SUM(E74:K74) -> 0 | M74: 0 | N74: =ROUND((L74*M74)+(L77*M77),2) -> 0 | O74: ='Deduction Record'!O20 -> 0 | P74: =IF(N77=0,0,N77-O74) -> 0 | Q74: ='Fringe Record'!S22 -> 0 | R74: =ROUND(IF(Q74=0,0,IF(L74=0,0,Q74*(L74+L77))),2) -> 0
C76: =IF(C74="Select Labor Code","",VLOOKUP(C74,'Labor Classification Codes'!$A$3:$C$554,2,FALSE)) -> 
D77: OT | L77: =SUM(E77:K77) -> 0 | M77: =ROUND(M74*1.5,2) -> 0 | N77: 0
B78: Select Employee Type | C78: =IF(C74="Select Labor Code","",VLOOKUP(C74,'Labor Classification Codes'!$A$3:$C$554,3,FALSE)) -> 
A80: =A74+1 -> 12 | C80: Select FDOT 'Alias' | D80: ST | L80: =SUM(E80:K80) -> 0 | M80: 0 | N80: =ROUND((L80*M80)+(L83*M83),2) -> 0 | O80: ='Deduction Record'!O21 -> 0 | P80: =IF(N83=0,0,N83-O80) -> 0 | Q80: ='Fringe Record'!S23 -> 0 | R80: =ROUND(IF(Q80=0,0,IF(L80=0,0,Q80*(L80+L83))),2) -> 0
C82: =IF(C80="Select Labor Code","",VLOOKUP(C80,'Labor Classification Codes'!$A$3:$C$554,2,FALSE)) -> 
D83: OT | L83: =SUM(E83:K83) -> 0 | M83: =ROUND(M80*1.5,2) -> 0 | N83: 0
B84: Select Employee Type | C84: =IF(C80="Select Labor Code","",VLOOKUP(C80,'Labor Classification Codes'!$A$3:$C$554,3,FALSE)) -> 
A86: =A80+1 -> 13 | C86: Select FDOT 'Alias' | D86: ST | L86: =SUM(E86:K86) -> 0 | M86: 0 | N86: =ROUND((L86*M86)+(L89*M89),2) -> 0 | O86: ='Deduction Record'!O22 -> 0 | P86: =IF(N89=0,0,N89-O86) -> 0 | Q86: ='Fringe Record'!S24 -> 0 | R86: =ROUND(IF(Q86=0,0,IF(L86=0,0,Q86*(L86+L89))),2) -> 0
C88: =IF(C86="Select Labor Code","",VLOOKUP(C86,'Labor Classification Codes'!$A$3:$C$554,2,FALSE)) -> 
D89: OT | L89: =SUM(E89:K89) -> 0 | M89: =ROUND(M86*1.5,2) -> 0 | N89: 0
B90: Select Employee Type | C90: =IF(C86="Select Labor Code","",VLOOKUP(C86,'Labor Classification Codes'!$A$3:$C$554,3,FALSE)) -> 
A92: =A86+1 -> 14 | C92: Select FDOT 'Alias' | D92: ST | L92: =SUM(E92:K92) -> 0 | M92: 0 | N92: =ROUND((L92*M92)+(L95*M95),2) -> 0 | O92: ='Deduction Record'!O23 -> 0 | P92: =IF(N95=0,0,N95-O92) -> 0 | Q92: ='Fringe Record'!S25 -> 0 | R92: =ROUND(IF(Q92=0,0,IF(L92=0,0,Q92*(L92+L95))),2) -> 0
C94: =IF(C92="Select Labor Code","",VLOOKUP(C92,'Labor Classification Codes'!$A$3:$C$554,2,FALSE)) -> 
D95: OT | L95: =SUM(E95:K95) -> 0 | M95: =ROUND(M92*1.5,2) -> 0 | N95: 0
B96: Select Employee Type | C96: =IF(C92="Select Labor Code","",VLOOKUP(C92,'Labor Classification Codes'!$A$3:$C$554,3,FALSE)) -> 
A98: =A92+1 -> 15 | C98: Select FDOT 'Alias' | D98: ST | L98: =SUM(E98:K98) -> 0 | M98: 0 | N98: =ROUND((L98*M98)+(L101*M101),2) -> 0 | O98: ='Deduction Record'!O24 -> 0 | P98: =IF(N101=0,0,N101-O98) -> 0 | Q98: ='Fringe Record'!S26 -> 0 | R98: =ROUND(IF(Q98=0,0,IF(L98=0,0,Q98*(L98+L101))),2) -> 0
C100: =IF(C98="Select Labor Code","",VLOOKUP(C98,'Labor Classification Codes'!$A$3:$C$554,2,FALSE)) -> 
D101: OT | L101: =SUM(E101:K101) -> 0 | M101: =ROUND(M98*1.5,2) -> 0 | N101: 0
B102: Select Employee Type | C102: =IF(C98="Select Labor Code","",VLOOKUP(C98,'Labor Classification Codes'!$A$3:$C$554,3,FALSE)) -> 
A104: =A98+1 -> 16 | C104: Select FDOT 'Alias' | D104: ST | L104: =SUM(E104:K104) -> 0 | M104: 0 | N104: =ROUND((L104*M104)+(L107*M107),2) -> 0 | O104: ='Deduction Record'!O25 -> 0 | P104: =IF(N107=0,0,N107-O104) -> 0 | Q104: ='Fringe Record'!S27 -> 0 | R104: =ROUND(IF(Q104=0,0,IF(L104=0,0,Q104*(L104+L107))),2) -> 0
C106: =IF(C104="Select Labor Code","",VLOOKUP(C104,'Labor Classification Codes'!$A$3:$C$554,2,FALSE)) -> 
D107: OT | L107: =SUM(E107:K107) -> 0 | M107: =ROUND(M104*1.5,2) -> 0 | N107: 0
B108: Select Employee Type | C108: =IF(C104="Select Labor Code","",VLOOKUP(C104,'Labor Classification Codes'!$A$3:$C$554,3,FALSE)) -> 
A110: =A104+1 -> 17 | C110: Select FDOT 'Alias' | D110: ST | L110: =SUM(E110:K110) -> 0 | M110: 0 | N110: =ROUND((L110*M110)+(L113*M113),2) -> 0 | O110: ='Deduction Record'!O26 -> 0 | P110: =IF(N113=0,0,N113-O110) -> 0 | Q110: ='Fringe Record'!S28 -> 0 | R110: =ROUND(IF(Q110=0,0,IF(L110=0,0,Q110*(L110+L113))),2) -> 0
C112: =IF(C110="Select Labor Code","",VLOOKUP(C110,'Labor Classification Codes'!$A$3:$C$554,2,FALSE)) -> 
D113: OT | L113: =SUM(E113:K113) -> 0 | M113: =ROUND(M110*1.5,2) -> 0 | N113: 0
B114: Select Employee Type | C114: =IF(C110="Select Labor Code","",VLOOKUP(C110,'Labor Classification Codes'!$A$3:$C$554,3,FALSE)) -> 
A116: =A110+1 -> 18 | C116: Select FDOT 'Alias' | D116: ST | L116: =SUM(E116:K116) -> 0 | M116: 0 | N116: =ROUND((L116*M116)+(L119*M119),2) -> 0 | O116: ='Deduction Record'!O27 -> 0 | P116: =IF(N119=0,0,N119-O116) -> 0 | Q116: ='Fringe Record'!S29 -> 0 | R116: =ROUND(IF(Q116=0,0,IF(L116=0,0,Q116*(L116+L119))),2) -> 0
C118: =IF(C116="Select Labor Code","",VLOOKUP(C116,'Labor Classification Codes'!$A$3:$C$554,2,FALSE)) -> 
D119: OT | L119: =SUM(E119:K119) -> 0 | M119: =ROUND(M116*1.5,2) -> 0 | N119: 0
B120: Select Employee Type | C120: =IF(C116="Select Labor Code","",VLOOKUP(C116,'Labor Classification Codes'!$A$3:$C$554,3,FALSE)) -> 
A122: =A116+1 -> 19 | C122: Select FDOT 'Alias' | D122: ST | L122: =SUM(E122:K122) -> 0 | M122: 0 | N122: =ROUND((L122*M122)+(L125*M125),2) -> 0 | O122: ='Deduction Record'!O28 -> 0 | P122: =IF(N125=0,0,N125-O122) -> 0 | Q122: ='Fringe Record'!S30 -> 0 | R122: =ROUND(IF(Q122=0,0,IF(L122=0,0,Q122*(L122+L125))),2) -> 0
C124: =IF(C122="Select Labor Code","",VLOOKUP(C122,'Labor Classification Codes'!$A$3:$C$554,2,FALSE)) -> 
D125: OT | L125: =SUM(E125:K125) -> 0 | M125: =ROUND(M122*1.5,2) -> 0 | N125: 0
B126: Select Employee Type | C126: =IF(C122="Select Labor Code","",VLOOKUP(C122,'Labor Classification Codes'!$A$3:$C$554,3,FALSE)) -> 
A128: =A122+1 -> 20 | C128: Select FDOT 'Alias' | D128: ST | L128: =SUM(E128:K128) -> 0 | M128: 0 | N128: =ROUND((L128*M128)+(L131*M131),2) -> 0 | O128: ='Deduction Record'!O29 -> 0 | P128: =IF(N131=0,0,N131-O128) -> 0 | Q128: ='Fringe Record'!S31 -> 0 | R128: =ROUND(IF(Q128=0,0,IF(L128=0,0,Q128*(L128+L131))),2) -> 0
C130: =IF(C128="Select Labor Code","",VLOOKUP(C128,'Labor Classification Codes'!$A$3:$C$554,2,FALSE)) -> 
D131: OT | L131: =SUM(E131:K131) -> 0 | M131: =ROUND(M128*1.5,2) -> 0 | N131: 0
B132: Select Employee Type | C132: =IF(C128="Select Labor Code","",VLOOKUP(C128,'Labor Classification Codes'!$A$3:$C$554,3,FALSE)) -> 
A134: =A128+1 -> 21 | C134: Select FDOT 'Alias' | D134: ST | L134: =SUM(E134:K134) -> 0 | M134: 0 | N134: =ROUND((L134*M134)+(L137*M137),2) -> 0 | O134: ='Deduction Record'!O30 -> 0 | P134: =IF(N137=0,0,N137-O134) -> 0 | Q134: ='Fringe Record'!S32 -> 0 | R134: =ROUND(IF(Q134=0,0,IF(L134=0,0,Q134*(L134+L137))),2) -> 0
C136: =IF(C134="Select Labor Code","",VLOOKUP(C134,'Labor Classification Codes'!$A$3:$C$554,2,FALSE)) -> 
D137: OT | L137: =SUM(E137:K137) -> 0 | M137: =ROUND(M134*1.5,2) -> 0 | N137: 0
B138: Select Employee Type | C138: =IF(C134="Select Labor Code","",VLOOKUP(C134,'Labor Classification Codes'!$A$3:$C$554,3,FALSE)) -> 
A140: =A134+1 -> 22 | C140: Select FDOT 'Alias' | D140: ST | L140: =SUM(E140:K140) -> 0 | M140: 0 | N140: =ROUND((L140*M140)+(L143*M143),2) -> 0 | O140: ='Deduction Record'!O31 -> 0 | P140: =IF(N143=0,0,N143-O140) -> 0 | Q140: ='Fringe Record'!S33 -> 0 | R140: =ROUND(IF(Q140=0,0,IF(L140=0,0,Q140*(L140+L143))),2) -> 0
C142: =IF(C140="Select Labor Code","",VLOOKUP(C140,'Labor Classification Codes'!$A$3:$C$554,2,FALSE)) -> 
D143: OT | L143: =SUM(E143:K143) -> 0 | M143: =ROUND(M140*1.5,2) -> 0 | N143: 0
B144: Select Employee Type | C144: =IF(C140="Select Labor Code","",VLOOKUP(C140,'Labor Classification Codes'!$A$3:$C$554,3,FALSE)) -> 
A146: =A140+1 -> 23 | C146: Select FDOT 'Alias' | D146: ST | L146: =SUM(E146:K146) -> 0 | M146: 0 | N146: =ROUND((L146*M146)+(L149*M149),2) -> 0 | O146: ='Deduction Record'!O32 -> 0 | P146: =IF(N149=0,0,N149-O146) -> 0 | Q146: ='Fringe Record'!S34 -> 0 | R146: =ROUND(IF(Q146=0,0,IF(L146=0,0,Q146*(L146+L149))),2) -> 0
C148: =IF(C146="Select Labor Code","",VLOOKUP(C146,'Labor Classification Codes'!$A$3:$C$554,2,FALSE)) -> 
D149: OT | L149: =SUM(E149:K149) -> 0 | M149: =ROUND(M146*1.5,2) -> 0 | N149: 0
B150: Select Employee Type | C150: =IF(C146="Select Labor Code","",VLOOKUP(C146,'Labor Classification Codes'!$A$3:$C$554,3,FALSE)) -> 
A152: =A146+1 -> 24 | C152: Select FDOT 'Alias' | D152: ST | L152: =SUM(E152:K152) -> 0 | M152: 0 | N152: =ROUND((L152*M152)+(L155*M155),2) -> 0 | O152: ='Deduction Record'!O33 -> 0 | P152: =IF(N155=0,0,N155-O152) -> 0 | Q152: ='Fringe Record'!S35 -> 0 | R152: =ROUND(IF(Q152=0,0,IF(L152=0,0,Q152*(L152+L155))),2) -> 0
C154: =IF(C152="Select Labor Code","",VLOOKUP(C152,'Labor Classification Codes'!$A$3:$C$554,2,FALSE)) -> 
D155: OT | L155: =SUM(E155:K155) -> 0 | M155: =ROUND(M152*1.5,2) -> 0 | N155: 0
B156: Select Employee Type | C156: =IF(C152="Select Labor Code","",VLOOKUP(C152,'Labor Classification Codes'!$A$3:$C$554,3,FALSE)) -> 
A158: =A152+1 -> 25 | C158: Select FDOT 'Alias' | D158: ST | L158: =SUM(E158:K158) -> 0 | M158: 0 | N158: =ROUND((L158*M158)+(L161*M161),2) -> 0 | O158: ='Deduction Record'!O34 -> 0 | P158: =IF(N161=0,0,N161-O158) -> 0 | Q158: ='Fringe Record'!S36 -> 0 | R158: =ROUND(IF(Q158=0,0,IF(L158=0,0,Q158*(L158+L161))),2) -> 0
C160: =IF(C158="Select Labor Code","",VLOOKUP(C158,'Labor Classification Codes'!$A$3:$C$554,2,FALSE)) -> 
D161: OT | L161: =SUM(E161:K161) -> 0 | M161: =ROUND(M158*1.5,2) -> 0 | N161: 0
B162: Select Employee Type | C162: =IF(C158="Select Labor Code","",VLOOKUP(C158,'Labor Classification Codes'!$A$3:$C$554,3,FALSE)) -> 
A164: =A158+1 -> 26 | C164: Select FDOT 'Alias' | D164: ST | L164: =SUM(E164:K164) -> 0 | M164: 0 | N164: =ROUND((L164*M164)+(L167*M167),2) -> 0 | O164: ='Deduction Record'!O35 -> 0 | P164: =IF(N167=0,0,N167-O164) -> 0 | Q164: ='Fringe Record'!S37 -> 0 | R164: =ROUND(IF(Q164=0,0,IF(L164=0,0,Q164*(L164+L167))),2) -> 0
C166: =IF(C164="Select Labor Code","",VLOOKUP(C164,'Labor Classification Codes'!$A$3:$C$554,2,FALSE)) -> 
D167: OT | L167: =SUM(E167:K167) -> 0 | M167: =ROUND(M164*1.5,2) -> 0 | N167: 0
B168: Select Employee Type | C168: =IF(C164="Select Labor Code","",VLOOKUP(C164,'Labor Classification Codes'!$A$3:$C$554,3,FALSE)) -> 
A170: =A164+1 -> 27 | C170: Select FDOT 'Alias' | D170: ST | L170: =SUM(E170:K170) -> 0 | M170: 0 | N170: =ROUND((L170*M170)+(L173*M173),2) -> 0 | O170: ='Deduction Record'!O36 -> 0 | P170: =IF(N173=0,0,N173-O170) -> 0 | Q170: ='Fringe Record'!S38 -> 0 | R170: =ROUND(IF(Q170=0,0,IF(L170=0,0,Q170*(L170+L173))),2) -> 0
C172: =IF(C170="Select Labor Code","",VLOOKUP(C170,'Labor Classification Codes'!$A$3:$C$554,2,FALSE)) -> 
D173: OT | L173: =SUM(E173:K173) -> 0 | M173: =ROUND(M170*1.5,2) -> 0 | N173: 0
B174: Select Employee Type | C174: =IF(C170="Select Labor Code","",VLOOKUP(C170,'Labor Classification Codes'!$A$3:$C$554,3,FALSE)) -> 
A176: =A170+1 -> 28 | C176: Select FDOT 'Alias' | D176: ST | L176: =SUM(E176:K176) -> 0 | M176: 0 | N176: =ROUND((L176*M176)+(L179*M179),2) -> 0 | O176: ='Deduction Record'!O37 -> 0 | P176: =IF(N179=0,0,N179-O176) -> 0 | Q176: ='Fringe Record'!S39 -> 0 | R176: =ROUND(IF(Q176=0,0,IF(L176=0,0,Q176*(L176+L179))),2) -> 0
C178: =IF(C176="Select Labor Code","",VLOOKUP(C176,'Labor Classification Codes'!$A$3:$C$554,2,FALSE)) -> 
D179: OT | L179: =SUM(E179:K179) -> 0 | M179: =ROUND(M176*1.5,2) -> 0 | N179: 0
B180: Select Employee Type | C180: =IF(C176="Select Labor Code","",VLOOKUP(C176,'Labor Classification Codes'!$A$3:$C$554,3,FALSE)) -> 
A182: =A176+1 -> 29 | C182: Select FDOT 'Alias' | D182: ST | L182: =SUM(E182:K182) -> 0 | M182: 0 | N182: =ROUND((L182*M182)+(L185*M185),2) -> 0 | O182: ='Deduction Record'!O38 -> 0 | P182: =IF(N185=0,0,N185-O182) -> 0 | Q182: ='Fringe Record'!S40 -> 0 | R182: =ROUND(IF(Q182=0,0,IF(L182=0,0,Q182*(L182+L185))),2) -> 0
C184: =IF(C182="Select Labor Code","",VLOOKUP(C182,'Labor Classification Codes'!$A$3:$C$554,2,FALSE)) -> 
D185: OT | L185: =SUM(E185:K185) -> 0 | M185: =ROUND(M182*1.5,2) -> 0 | N185: 0
B186: Select Employee Type | C186: =IF(C182="Select Labor Code","",VLOOKUP(C182,'Labor Classification Codes'!$A$3:$C$554,3,FALSE)) -> 
A188: =A182+1 -> 30 | C188: Select FDOT 'Alias' | D188: ST | L188: =SUM(E188:K188) -> 0 | M188: 0 | N188: =ROUND((L188*M188)+(L191*M191),2) -> 0 | O188: ='Deduction Record'!O39 -> 0 | P188: =IF(N191=0,0,N191-O188) -> 0 | Q188: ='Fringe Record'!S41 -> 0 | R188: =ROUND(IF(Q188=0,0,IF(L188=0,0,Q188*(L188+L191))),2) -> 0
C190: =IF(C188="Select Labor Code","",VLOOKUP(C188,'Labor Classification Codes'!$A$3:$C$554,2,FALSE)) -> 
D191: OT | L191: =SUM(E191:K191) -> 0 | M191: =ROUND(M188*1.5,2) -> 0 | N191: 0
B192: Select Employee Type | C192: =IF(C188="Select Labor Code","",VLOOKUP(C188,'Labor Classification Codes'!$A$3:$C$554,3,FALSE)) -> 

Sheet Deduction Record
B1: Deduction Record:
B2: Contractor's Name: | C2: =IF('Wage & Hour Record'!C3="","",'Wage & Hour Record'!C3) ->  | I2: Address: | J2: =IF('Wage & Hour Record'!L3="","",'Wage & Hour Record'!L3) -> 
B4: Payroll Number: | C4: ='Wage & Hour Record'!C5 -> 0 | E4: Contract No.: | F4: =IF('Wage & Hour Record'!L5="","",'Wage & Hour Record'!L5) ->  | I4: Project Description: | J4: =IF('Wage & Hour Record'!P5="","",'Wage & Hour Record'!P5) -> 
B6: For Week Ending: | C6: =IF('Wage & Hour Record'!G5="","",'Wage & Hour Record'!G5) ->  | E6: FPID No.: | F6: =IF('Wage & Hour Record'!L7="","",'Wage & Hour Record'!L7) -> 
B8: Employee Name | C8: FICA | D8: Federal Income Tax | E8: Specify Deduction | F8: Specify Deduction | G8: Specify Deduction | H8: Specify Deduction | I8: Specify Deduction | J8: Specify Deduction | K8: Specify Deduction | L8: Specify Deduction | M8: Specify Deduction | N8: Specify Deduction | O8: Total Deductions
A10: 1 | B10: ='Wage & Hour Record'!B$14 -> 0 | C10: 0 | D10: 0 | E10: 0 | F10: 0 | G10: 0 | H10: 0 | I10: 0 | J10: 0 | K10: 0 | L10: 0 | M10: 0 | N10: 0 | O10: =SUM(C10:N10) -> 0
A11: =A10+1 -> 2 | B11: ='Wage & Hour Record'!B$20 -> 0 | C11: 0 | D11: 0 | E11: 0 | F11: 0 | G11: 0 | H11: 0 | I11: 0 | J11: 0 | K11: 0 | L11: 0 | M11: 0 | N11: 0 | O11: =SUM(C11:N11) -> 0
A12: =A11+1 -> 3 | B12: ='Wage & Hour Record'!B$26 -> 0 | C12: 0 | D12: 0 | E12: 0 | F12: 0 | G12: 0 | H12: 0 | I12: 0 | J12: 0 | K12: 0 | L12: 0 | M12: 0 | N12: 0 | O12: 0
A13: 4 | B13: ='Wage & Hour Record'!B$32 -> 0 | C13: 0 | D13: 0 | E13: 0 | F13: 0 | G13: 0 | H13: 0 | I13: 0 | J13: 0 | K13: 0 | L13: 0 | M13: 0 | N13: 0 | O13: 0
A14: 5 | B14: ='Wage & Hour Record'!B$38 -> 0 | C14: 0 | D14: 0 | E14: 0 | F14: 0 | G14: 0 | H14: 0 | I14: 0 | J14: 0 | K14: 0 | L14: 0 | M14: 0 | N14: 0 | O14: 0
A15: 6 | B15: ='Wage & Hour Record'!B$44 -> 0 | C15: 0 | D15: 0 | E15: 0 | F15: 0 | G15: 0 | H15: 0 | I15: 0 | J15: 0 | K15: 0 | L15: 0 | M15: 0 | N15: 0 | O15: 0
A16: 7 | B16: ='Wage & Hour Record'!B$50 -> 0 | C16: 0 | D16: 0 | E16: 0 | F16: 0 | G16: 0 | H16: 0 | I16: 0 | J16: 0 | K16: 0 | L16: 0 | M16: 0 | N16: 0 | O16: 0
A17: 8 | B17: ='Wage & Hour Record'!B$56 -> 0 | C17: 0 | D17: 0 | E17: 0 | F17: 0 | G17: 0 | H17: 0 | I17: 0 | J17: 0 | K17: 0 | L17: 0 | M17: 0 | N17: 0 | O17: 0
A18: 9 | B18: ='Wage & Hour Record'!B$62 -> 0 | C18: 0.23 | D18: 0 | E18: 0 | F18: 0 | G18: 0 | H18: 0 | I18: 0 | J18: 0 | K18: 0 | L18: 0 | M18: 0 | N18: 0 | O18: 0.23
A19: 10 | B19: ='Wage & Hour Record'!B$68 -> 0 | C19: 0 | D19: 0 | E19: 0 | F19: 0 | G19: 0 | H19: 0 | I19: 0 | J19: 0 | K19: 0 | L19: 0 | M19: 0 | N19: 0 | O19: 0
A20: 11 | B20: ='Wage & Hour Record'!B$74 -> 0 | C20: 0 | D20: 0 | E20: 0 | F20: 0 | G20: 0 | H20: 0 | I20: 0 | J20: 0 | K20: 0 | L20: 0 | M20: 0 | N20: 0 | O20: 0
A21: =A20+1 -> 12 | B21: ='Wage & Hour Record'!B$80 -> 0 | C21: 0 | D21: 0 | E21: 0 | F21: 0 | G21: 0 | H21: 0 | I21: 0 | J21: 0 | K21: 0 | L21: 0 | M21: 0 | N21: 0 | O21: =SUM(C21:N21) -> 0
A22: 13 | B22: ='Wage & Hour Record'!B$86 -> 0 | C22: 0 | D22: 0 | E22: 0 | F22: 0 | G22: 0 | H22: 0 | I22: 0 | J22: 0 | K22: 0 | L22: 0 | M22: 0 | N22: 0 | O22: 0
A23: 14 | B23: ='Wage & Hour Record'!B$92 -> 0 | C23: 0 | D23: 0 | E23: 0 | F23: 0 | G23: 0 | H23: 0 | I23: 0 | J23: 0 | K23: 0 | L23: 0 | M23: 0 | N23: 0 | O23: 0
A24: 15 | B24: ='Wage & Hour Record'!B$98 -> 0 | C24: 0 | D24: 0 | E24: 0 | F24: 0 | G24: 0 | H24: 0 | I24: 0 | J24: 0 | K24: 0 | L24: 0 | M24: 0 | N24: 0 | O24: 0
A25: 16 | B25: ='Wage & Hour Record'!B$104 -> 0 | C25: 0 | D25: 0 | E25: 0 | F25: 0 | G25: 0 | H25: 0 | I25: 0 | J25: 0 | K25: 0 | L25: 0 | M25: 0 | N25: 0 | O25: 0
A26: 17 | B26: ='Wage & Hour Record'!B$110 -> 0 | C26: 0 | D26: 0 | E26: 0 | F26: 0 | G26: 0 | H26: 0 | I26: 0 | J26: 0 | K26: 0 | L26: 0 | M26: 0 | N26: 0 | O26: 0
A27: 18 | B27: ='Wage & Hour Record'!B$116 -> 0 | C27: 0 | D27: 0 | E27: 0 | F27: 0 | G27: 0 | H27: 0 | I27: 0 | J27: 0 | K27: 0 | L27: 0 | M27: 0 | N27: 0 | O27: 0
A28: 19 | B28: ='Wage & Hour Record'!B$122 -> 0 | C28: 0 | D28: 0 | E28: 0 | F28: 0 | G28: 0 | H28: 0 | I28: 0 | J28: 0 | K28: 0 | L28: 0 | M28: 0 | N28: 0 | O28: 0
A29: 20 | B29: ='Wage & Hour Record'!B$128 -> 0 | C29: 0 | D29: 0 | E29: 0 | F29: 0 | G29: 0 | H29: 0 | I29: 0 | J29: 0 | K29: 0 | L29: 0 | M29: 0 | N29: 0 | O29: 0
A30: 21 | B30: ='Wage & Hour Record'!B$134 -> 0 | C30: 0 | D30: 0 | E30: 0 | F30: 0 | G30: 0 | H30: 0 | I30: 0 | J30: 0 | K30: 0 | L30: 0 | M30: 0 | N30: 0 | O30: 0
A31: =A30+1 -> 22 | B31: ='Wage & Hour Record'!B$140 -> 0 | C31: 0 | D31: 0 | E31: 0 | F31: 0 | G31: 0 | H31: 0 | I31: 0 | J31: 0 | K31: 0 | L31: 0 | M31: 0 | N31: 0 | O31: 0
A32: 23 | B32: ='Wage & Hour Record'!B$146 -> 0 | C32: 0 | D32: 0 | E32: 0 | F32: 0 | G32: 0 | H32: 0 | I32: 0 | J32: 0 | K32: 0 | L32: 0 | M32: 0 | N32: 0 | O32: 0
A33: 24 | B33: ='Wage & Hour Record'!B$152 -> 0 | C33: 0 | D33: 0 | E33: 0 | F33: 0 | G33: 0 | H33: 0 | I33: 0 | J33: 0 | K33: 0 | L33: 0 | M33: 0 | N33: 0 | O33: 0
A34: 25 | B34: ='Wage & Hour Record'!B$158 -> 0 | C34: 0 | D34: 0 | E34: 0 | F34: 0 | G34: 0 | H34: 0 | I34: 0 | J34: 0 | K34: 0 | L34: 0 | M34: 0 | N34: 0 | O34: 0
A35: 26 | B35: ='Wage & Hour Record'!B$164 -> 0 | C35: 0 | D35: 0 | E35: 0 | F35: 0 | G35: 0 | H35: 0 | I35: 0 | J35: 0 | K35: 0 | L35: 0 | M35: 0 | N35: 0 | O35: 0
A36: 27 | B36: ='Wage & Hour Record'!B$170 -> 0 | C36: 0 | D36: 0 | E36: 0 | F36: 0 | G36: 0 | H36: 0 | I36: 0 | J36: 0 | K36: 0 | L36: 0 | M36: 0 | N36: 0 | O36: 0
A37: 28 | B37: ='Wage & Hour Record'!B$176 -> 0 | C37: 0 | D37: 0 | E37: 0 | F37: 0 | G37: 0 | H37: 0 | I37: 0 | J37: 0 | K37: 0 | L37: 0 | M37: 0 | N37: 0 | O37: 0
A38: 29 | B38: ='Wage & Hour Record'!B$182 -> 0 | C38: 0 | D38: 0 | E38: 0 | F38: 0 | G38: 0 | H38: 0 | I38: 0 | J38: 0 | K38: 0 | L38: 0 | M38: 0 | N38: 0 | O38: 0
A39: 30 | B39: ='Wage & Hour Record'!B$188 -> 0 | C39: 0 | D39: 0 | E39: 0 | F39: 0 | G39: 0 | H39: 0 | I39: 0 | J39: 0 | K39: 0 | L39: 0 | M39: 0 | N39: 0 | O39: 0

Sheet Fringe Record
B1: Fringe Benefit Record:
B2: Contractor's Name: | C2: =IF('Wage & Hour Record'!C3="","",'Wage & Hour Record'!C3) ->  | I2: Address: | J2: =IF('Wage & Hour Record'!L3="","",'Wage & Hour Record'!L3) -> 
B4: Payroll Number: | C4: ='Wage & Hour Record'!C5 -> 0 | E4: Contract No.: | F4: =IF('Wage & Hour Record'!L5="","",'Wage & Hour Record'!L5) ->  | I4: Project Description: | J4: =IF('Wage & Hour Record'!P5="","",'Wage & Hour Record'!P5) -> 
B6: For Week Ending: | C6: =IF('Wage & Hour Record'!G5="","",'Wage & Hour Record'!G5) ->  | E6: FPID No.: | F6: =IF('Wage & Hour Record'!L7="","",'Wage & Hour Record'!L7) -> 
B8: Employee Name | C8: Specify FB Name | E8: Specify FB Name | G8: Specify FB Name | I8: Specify FB Name | K8: Specify FB Name | M8: Specify FB Name | O8: Specify FB Name | Q8: Specify FB Name | S8: Total Hourly Credit
C9: Select FB Type | E9: Select FB Type | G9: Select FB Type | I9: Select FB Type | K9: Select FB Type | M9: Select FB Type | O9: Select FB Type | Q9: Select FB Type
C10: Specify FB Plan # | E10: Specify FB Plan # | G10: Specify FB Plan # | I10: Specify FB Plan # | K10: Specify FB Plan # | M10: Specify FB Plan # | O10: Specify FB Plan # | Q10: Specify FB Plan #
C11: Select FB Funding | E11: Select FB Funding | G11: Select FB Funding | I11: Select FB Funding | K11: Select FB Funding | M11: Select FB Funding | O11: Select FB Funding | Q11: Select FB Funding
A12: 1 | B12: ='Wage & Hour Record'!B$14 -> 0 | C12: Hrly Credit: | D12: 0 | E12: Hrly Credit: | F12: 0 | G12: Hrly Credit: | H12: 0 | I12: Hrly Credit: | J12: 0 | K12: Hrly Credit: | L12: 0 | M12: Hrly Credit: | N12: 0 | O12: Hrly Credit: | P12: 0 | Q12: Hrly Credit: | R12: 0 | S12: =D12+F12+H12+J12+L12+N12+P12+R12 -> 0
A13: =A12+1 -> 2 | B13: ='Wage & Hour Record'!B$20 -> 0 | C13: Hrly Credit: | D13: 0 | E13: Hrly Credit: | F13: 0 | G13: Hrly Credit: | H13: 0 | I13: Hrly Credit: | J13: 0 | K13: Hrly Credit: | L13: 0 | M13: Hrly Credit: | N13: 0 | O13: Hrly Credit: | P13: 0 | Q13: Hrly Credit: | R13: 0 | S13: =D13+F13+H13+J13+L13+N13+P13+R13 -> 0
A14: =A13+1 -> 3 | B14: ='Wage & Hour Record'!B$26 -> 0 | C14: Hrly Credit: | D14: 0 | E14: Hrly Credit: | F14: 0 | G14: Hrly Credit: | H14: 0 | I14: Hrly Credit: | J14: 0 | K14: Hrly Credit: | L14: 0 | M14: Hrly Credit: | N14: 0 | O14: Hrly Credit: | P14: 0 | Q14: Hrly Credit: | R14: 0 | S14: 0
A15: 4 | B15: ='Wage & Hour Record'!B$32 -> 0 | C15: Hrly Credit: | D15: 0 | E15: Hrly Credit: | F15: 0 | G15: Hrly Credit: | H15: 0 | I15: Hrly Credit: | J15: 0 | K15: Hrly Credit: | L15: 0 | M15: Hrly Credit: | N15: 0 | O15: Hrly Credit: | P15: 0 | Q15: Hrly Credit: | R15: 0 | S15: 0
A16: 5 | B16: ='Wage & Hour Record'!B$38 -> 0 | C16: Hrly Credit: | D16: 0 | E16: Hrly Credit: | F16: 0 | G16: Hrly Credit: | H16: 0 | I16: Hrly Credit: | J16: 0 | K16: Hrly Credit: | L16: 0 | M16: Hrly Credit: | N16: 0 | O16: Hrly Credit: | P16: 0 | Q16: Hrly Credit: | R16: 0 | S16: 0
A17: 6 | B17: ='Wage & Hour Record'!B$44 -> 0 | C17: Hrly Credit: | D17: 0 | E17: Hrly Credit: | F17: 0 | G17: Hrly Credit: | H17: 0 | I17: Hrly Credit: | J17: 0 | K17: Hrly Credit: | L17: 0 | M17: Hrly Credit: | N17: 0 | O17: Hrly Credit: | P17: 0 | Q17: Hrly Credit: | R17: 0 | S17: 0
A18: 7 | B18: ='Wage & Hour Record'!B$50 -> 0 | C18: Hrly Credit: | D18: 0 | E18: Hrly Credit: | F18: 0 | G18: Hrly Credit: | H18: 0 | I18: Hrly Credit: | J18: 0 | K18: Hrly Credit: | L18: 0 | M18: Hrly Credit: | N18: 0 | O18: Hrly Credit: | P18: 0 | Q18: Hrly Credit: | R18: 0 | S18: 0
A19: 8 | B19: ='Wage & Hour Record'!B$56 -> 0 | C19: Hrly Credit: | D19: 0 | E19: Hrly Credit: | F19: 0 | G19: Hrly Credit: | H19: 0 | I19: Hrly Credit: | J19: 0 | K19: Hrly Credit: | L19: 0 | M19: Hrly Credit: | N19: 0 | O19: Hrly Credit: | P19: 0 | Q19: Hrly Credit: | R19: 0 | S19: 0
A20: 9 | B20: ='Wage & Hour Record'!B$62 -> 0 | C20: Hrly Credit: | D20: 0 | E20: Hrly Credit: | F20: 0 | G20: Hrly Credit: | H20: 0 | I20: Hrly Credit: | J20: 0 | K20: Hrly Credit: | L20: 0 | M20: Hrly Credit: | N20: 0 | O20: Hrly Credit: | P20: 0 | Q20: Hrly Credit: | R20: 0 | S20: 0
A21: 10 | B21: ='Wage & Hour Record'!B$68 -> 0 | C21: Hrly Credit: | D21: 0 | E21: Hrly Credit: | F21: 0 | G21: Hrly Credit: | H21: 0 | I21: Hrly Credit: | J21: 0 | K21: Hrly Credit: | L21: 0 | M21: Hrly Credit: | N21: 0 | O21: Hrly Credit: | P21: 0 | Q21: Hrly Credit: | R21: 0 | S21: 0
A22: 11 | B22: ='Wage & Hour Record'!B$74 -> 0 | C22: Hrly Credit: | D22: 0 | E22: Hrly Credit: | F22: 0 | G22: Hrly Credit: | H22: 0 | I22: Hrly Credit: | J22: 0 | K22: Hrly Credit: | L22: 0 | M22: Hrly Credit: | N22: 0 | O22: Hrly Credit: | P22: 0 | Q22: Hrly Credit: | R22: 0 | S22: 0
A23: =A22+1 -> 12 | B23: ='Wage & Hour Record'!B$80 -> 0 | C23: Hrly Credit: | D23: 0 | E23: Hrly Credit: | F23: 0 | G23: Hrly Credit: | H23: 0 | I23: Hrly Credit: | J23: 0 | K23: Hrly Credit: | L23: 0 | M23: Hrly Credit: | N23: 0 | O23: Hrly Credit: | P23: 0 | Q23: Hrly Credit: | R23: 0 | S23: =D23+F23+H23+J23+L23+N23+P23+R23 -> 0
A24: 13 | B24: ='Wage & Hour Record'!B$86 -> 0 | C24: Hrly Credit: | D24: 0 | E24: Hrly Credit: | F24: 0 | G24: Hrly Credit: | H24: 0 | I24: Hrly Credit: | J24: 0 | K24: Hrly Credit: | L24: 0 | M24: Hrly Credit: | N24: 0 | O24: Hrly Credit: | P24: 0 | Q24: Hrly Credit: | R24: 0 | S24: 0
A25: 14 | B25: ='Wage & Hour Record'!B$92 -> 0 | C25: Hrly Credit: | D25: 0 | E25: Hrly Credit: | F25: 0 | G25: Hrly Credit: | H25: 0 | I25: Hrly Credit: | J25: 0 | K25: Hrly Credit: | L25: 0 | M25: Hrly Credit: | N25: 0 | O25: Hrly Credit: | P25: 0 | Q25: Hrly Credit: | R25: 0 | S25: 0
A26: 15 | B26: ='Wage & Hour Record'!B$98 -> 0 | C26: Hrly Credit: | D26: 0 | E26: Hrly Credit: | F26: 0 | G26: Hrly Credit: | H26: 0 | I26: Hrly Credit: | J26: 0 | K26: Hrly Credit: | L26: 0 | M26: Hrly Credit: | N26: 0 | O26: Hrly Credit: | P26: 0 | Q26: Hrly Credit: | R26: 0 | S26: 0
A27: 16 | B27: ='Wage & Hour Record'!B$104 -> 0 | C27: Hrly Credit: | D27: 0 | E27: Hrly Credit: | F27: 0 | G27: Hrly Credit: | H27: 0 | I27: Hrly Credit: | J27: 0 | K27: Hrly Credit: | L27: 0 | M27: Hrly Credit: | N27: 0 | O27: Hrly Credit: | P27: 0 | Q27: Hrly Credit: | R27: 0 | S27: 0
A28: 17 | B28: ='Wage & Hour Record'!B$110 -> 0 | C28: Hrly Credit: | D28: 0 | E28: Hrly Credit: | F28: 0 | G28: Hrly Credit: | H28: 0 | I28: Hrly Credit: | J28: 0 | K28: Hrly Credit: | L28: 0 | M28: Hrly Credit: | N28: 0 | O28: Hrly Credit: | P28: 0 | Q28: Hrly Credit: | R28: 0 | S28: 0
A29: 18 | B29: ='Wage & Hour Record'!B$116 -> 0 | C29: Hrly Credit: | D29: 0 | E29: Hrly Credit: | F29: 0 | G29: Hrly Credit: | H29: 0 | I29: Hrly Credit: | J29: 0 | K29: Hrly Credit: | L29: 0 | M29: Hrly Credit: | N29: 0 | O29: Hrly Credit: | P29: 0 | Q29: Hrly Credit: | R29: 0 | S29: 0
A30: 19 | B30: ='Wage & Hour Record'!B$122 -> 0 | C30: Hrly Credit: | D30: 0 | E30: Hrly Credit: | F30: 0 | G30: Hrly Credit: | H30: 0 | I30: Hrly Credit: | J30: 0 | K30: Hrly Credit: | L30: 0 | M30: Hrly Credit: | N30: 0 | O30: Hrly Credit: | P30: 0 | Q30: Hrly Credit: | R30: 0 | S30: 0
A31: 20 | B31: ='Wage & Hour Record'!B$128 -> 0 | C31: Hrly Credit: | D31: 0 | E31: Hrly Credit: | F31: 0 | G31: Hrly Credit: | H31: 0 | I31: Hrly Credit: | J31: 0 | K31: Hrly Credit: | L31: 0 | M31: Hrly Credit: | N31: 0 | O31: Hrly Credit: | P31: 0 | Q31: Hrly Credit: | R31: 0 | S31: 0
A32: 21 | B32: ='Wage & Hour Record'!B$134 -> 0 | C32: Hrly Credit: | D32: 0 | E32: Hrly Credit: | F32: 0 | G32: Hrly Credit: | H32: 0 | I32: Hrly Credit: | J32: 0 | K32: Hrly Credit: | L32: 0 | M32: Hrly Credit: | N32: 0 | O32: Hrly Credit: | P32: 0 | Q32: Hrly Credit: | R32: 0 | S32: 0
A33: =A32+1 -> 22 | B33: ='Wage & Hour Record'!B$140 -> 0 | C33: Hrly Credit: | D33: 0 | E33: Hrly Credit: | F33: 0 | G33: Hrly Credit: | H33: 0 | I33: Hrly Credit: | J33: 0 | K33: Hrly Credit: | L33: 0 | M33: Hrly Credit: | N33: 0 | O33: Hrly Credit: | P33: 0 | Q33: Hrly Credit: | R33: 0 | S33: 0
A34: 23 | B34: ='Wage & Hour Record'!B$146 -> 0 | C34: Hrly Credit: | D34: 0 | E34: Hrly Credit: | F34: 0 | G34: Hrly Credit: | H34: 0 | I34: Hrly Credit: | J34: 0 | K34: Hrly Credit: | L34: 0 | M34: Hrly Credit: | N34: 0 | O34: Hrly Credit: | P34: 0 | Q34: Hrly Credit: | R34: 0 | S34: 0
A35: 24 | B35: ='Wage & Hour Record'!B$152 -> 0 | C35: Hrly Credit: | D35: 0 | E35: Hrly Credit: | F35: 0 | G35: Hrly Credit: | H35: 0 | I35: Hrly Credit: | J35: 0 | K35: Hrly Credit: | L35: 0 | M35: Hrly Credit: | N35: 0 | O35: Hrly Credit: | P35: 0 | Q35: Hrly Credit: | R35: 0 | S35: 0
A36: 25 | B36: ='Wage & Hour Record'!B$158 -> 0 | C36: Hrly Credit: | D36: 0 | E36: Hrly Credit: | F36: 0 | G36: Hrly Credit: | H36: 0 | I36: Hrly Credit: | J36: 0 | K36: Hrly Credit: | L36: 0 | M36: Hrly Credit: | N36: 0 | O36: Hrly Credit: | P36: 0 | Q36: Hrly Credit: | R36: 0 | S36: 0
A37: 26 | B37: ='Wage & Hour Record'!B$164 -> 0 | C37: Hrly Credit: | D37: 0 | E37: Hrly Credit: | F37: 0 | G37: Hrly Credit: | H37: 0 | I37: Hrly Credit: | J37: 0 | K37: Hrly Credit: | L37: 0 | M37: Hrly Credit: | N37: 0 | O37: Hrly Credit: | P37: 0 | Q37: Hrly Credit: | R37: 0 | S37: 0
A38: 27 | B38: ='Wage & Hour Record'!B$170 -> 0 | C38: Hrly Credit: | D38: 0 | E38: Hrly Credit: | F38: 0 | G38: Hrly Credit: | H38: 0 | I38: Hrly Credit: | J38: 0 | K38: Hrly Credit: | L38: 0 | M38: Hrly Credit: | N38: 0 | O38: Hrly Credit: | P38: 0 | Q38: Hrly Credit: | R38: 0 | S38: 0
A39: 28 | B39: ='Wage & Hour Record'!B$176 -> 0 | C39: Hrly Credit: | D39: 0 | E39: Hrly Credit: | F39: 0 | G39: Hrly Credit: | H39: 0 | I39: Hrly Credit: | J39: 0 | K39: Hrly Credit: | L39: 0 | M39: Hrly Credit: | N39: 0 | O39: Hrly Credit: | P39: 0 | Q39: Hrly Credit: | R39: 0 | S39: 0
A40: 29 | B40: ='Wage & Hour Record'!B$182 -> 0 | C40: Hrly Credit: | D40: 0 | E40: Hrly Credit: | F40: 0 | G40: Hrly Credit: | H40: 0 | I40: Hrly Credit: | J40: 0 | K40: Hrly Credit: | L40: 0 | M40: Hrly Credit: | N40: 0 | O40: Hrly Credit: | P40: 0 | Q40: Hrly Credit: | R40: 0 | S40: 0
A41: 30 | B41: ='Wage & Hour Record'!B$188 -> 0 | C41: Hrly Credit: | D41: 0 | E41: Hrly Credit: | F41: 0 | G41: Hrly Credit: | H41: 0 | I41: Hrly Credit: | J41: 0 | K41: Hrly Credit: | L41: 0 | M41: Hrly Credit: | N41: 0 | O41: Hrly Credit: | P41: 0 | Q41: Hrly Credit: | R41: 0 | S41: 0

Sheet Employee Info (hidden)
A1: This worksheet will allow 250 employees to be listed. It is recommended that you add employees in alphabetical order. Employee information included in this worksheet should be the same as that recorded in company Payroll Software system. Employee ID (auto calculated) : birth month and birth Year, last four numbers of SS#.
A2: 1 | B2: 2 | C2: 3 | D2: 4 | E2: =D2+1 -> 5
A3: Select Employee | B3: First Name | C3: Middle Initial | D3: Last Name | E3: Employee ID No.
A4: =TEXT(PROPER(B4)&" "&PROPER(C4)&". "&PROPER(D4),) -> John C. Smith | B4: John | C4: C | D4: Smith | E4: 1234
A33: =TEXT(B33&", "&C33&" "&D33,) -> ,
A34: ,
A35: ,
A36: ,
A37: ,
A38: ,
A39: ,
A40: ,
A41: ,
A42: ,
A43: ,
A44: ,
A45: ,
A46: ,
A47: ,
A48: ,
A49: ,
A50: ,
A51: ,
A52: ,
A53: ,
A54: ,
A55: ,
A56: ,
A57: ,
A58: ,
A59: ,
A60: ,
A61: ,
A62: ,
A63: ,
A64: ,
A65: ,
A66: ,
A67: ,
A68: ,
A69: ,
A70: ,
A71: ,
A72: ,
A73: ,
A74: ,
A75: ,
A76: ,
A77: ,
A78: ,
A79: ,
A80: ,
A81: ,
A82: ,
A83: ,
A84: ,
A85: ,
A86: ,
A87: ,
A88: ,
A89: ,
A90: ,
A91: ,
A92: ,
A93: ,
A94: ,
A95: ,
A96: ,
A97: =TEXT(B97&", "&C97&" "&D97,) -> ,
A98: ,
A99: ,
A100: ,
A101: ,
A102: ,
A103: ,
A104: ,
A105: ,
A106: ,
A107: ,
A108: ,
A109: ,
A110: ,
A111: ,
A112: ,
A113: ,
A114: ,
A115: ,
A116: ,
A117: ,
A118: ,
A119: ,
A120: ,
A121: ,
A122: ,
A123: ,
A124: ,
A125: ,
A126: ,
A127: ,
A128: ,
A129: ,
A130: ,
A131: ,
A132: ,
A133: ,
A134: ,
A135: ,
A136: ,
A137: ,
A138: ,
A139: ,
A140: ,
A141: ,
A142: ,
A143: ,
A144: ,
A145: ,
A146: ,
A147: ,
A148: ,
A149: ,
A150: ,
A151: ,
A152: ,
A153: ,
A154: ,
A155: ,
A156: ,
A157: ,
A158: ,
A159: ,
A160: ,
A161: =TEXT(B161&", "&C161&" "&D161,) -> ,
A162: ,
A163: ,
A164: ,
A165: ,
A166: ,
A167: ,
A168: ,
A169: ,
A170: ,
A171: ,
A172: ,
A173: ,
A174: ,
A175: ,
A176: ,
A177: ,
A178: ,
A179: ,
A180: ,
A181: ,
A182: ,
A183: ,
A184: ,
A185: ,
A186: ,
A187: ,
A188: ,
A189: ,
A190: ,
A191: ,
A192: ,
A193: ,
A194: ,
A195: ,
A196: ,
A197: ,
A198: ,
A199: ,
A200: ,
A201: ,
A202: ,
A203: ,
A204: ,
A205: ,
A206: ,
A207: ,
A208: ,
A209: ,
A210: ,
A211: ,
A212: ,
A213: ,
A214: ,
A215: ,
A216: ,
A217: ,
A218: ,
A219: ,
A220: ,
A221: ,
A222: ,
A223: ,
A224: ,
A225: =TEXT(B225&", "&C225&" "&D225,) -> ,
A226: ,
A227: ,
A228: ,
... 23 more rows

Sheet Labor Classification Codes
A1: FDOT CRM Alias Names | B1: Labor Code | C1: Class Code | D1: Description | I1: Fringe Benefit Payment
A2: Select FDOT 'Alias' | E2: Select Employee Type | G2: Select FB Type | I2: Select FB Funds
A3: 10 YARD HAUL TRUCK | B3: TRUCK DRIVER | C3: 10 YARD HAUL AWAY TRUCK | D3: DRIVES LIGHT OR HEAVY DUTY SINGLE REAR AXEL TRUCK USED IN HAULING MATERIALS. DOES NOT INCLUDE DUMP TRUCK | E3: Journeyworker | G3: Insurance-Life | I3: Funded
A4: ABATEMENT WORKER | B4: CRAFTMAN | C4: ABATEMENT WORKER | D4: INCLUDES PREPARATION WETTING STRIPPING REMOVAL SCRAPING VACUUMING BAGGING AND DISPOSING OF CONTAMINATEDHAZARDOUS MATERIALS WHETHER THEY CONTAIN ASBESTOS OR LEAD. INCLUDES THE REMOVAL APPLICATION OF ALL INSULATING MAERIALS PROTECTIVE COVERINGS COATING AND FINISHING TO TYPES OF SYSTEMS. | E4: Registered Apprentice | G4: Insurance-Health | I4: Unfunded
A5: ADA CURB RAMP INSTALLER | B5: LABORER | C5: DETECTABLE WARNING INSTALLER | D5: INSTALLATION OF CURB RAMPS AND DETECTABLE WARNING MATS. THIS WORK MAY INVOLVE THE USE OF ADHESIVES AND SMALL HAND TOOS SUCH AS SCRAPERS AND DRILLS. | E5: On-the-Job Training | G5: Insurance-Dental
A6: ADA INSTALLER | B6: LABORER | C6: DETECTABLE WARNING INSTALLER | D6: INSTALLATION OF CURB RAMPS AND DETECTABLE WARNING MATS. THIS WORK MAY INVOLVE THE USE OF ADHESIVES AND SMALL HAND TOOS SUCH AS SCRAPERS AND DRILLS. | G6: Pension/401K
A7: ADA MAT INSTALLER | B7: LABORER | C7: DETECTABLE WARNING INSTALLER | D7: INSTALLATION OF CURB RAMPS AND DETECTABLE WARNING MATS. THIS WORK MAY INVOLVE THE USE OF ADHESIVES AND SMALL HAND TOOS SUCH AS SCRAPERS AND DRILLS. | G7: Vacation/Holiday
A8: ADAABA CURB RAMP INSTALLER | B8: LABORER | C8: DETECTABLE WARNING INSTALLER | D8: INSTALLATION OF CURB RAMPS AND DETECTABLE WARNING MATS. THIS WORK MAY INVOLVE THE USE OF ADHESIVES AND SMALL HAND TOOS SUCH AS SCRAPERS AND DRILLS. | G8: Sick Leave
A9: AERIAL TRUCK OPERATOR | B9: TRUCK OPERATOR | C9: AERIAL TRUCK OPERATOR | D9: OPERATES A TRUCK WITH A MOUNTED ARTICULATED BOOM USED TO LIFT PEOPLE ANDOR OBJECTS | G9: Cash
A10: AERIALNBSPLIFTNBSPOPERATOR | B10: OPERATOR | C10: AERIAL LIFT OPERATOR | D10: OPERATES A MACHINE WITH A MOUNTED ARTICULATED BOOM USED TO LIFT PEOPLE ANDOR OBJECTS.
A11: AFRAME | B11: TRUCK DRIVER | C11: AFRAME TRUCK | D11: DRIVES TRUCK DESIGNED TO TRANSPORT SHEETED MATERIAL I.E.. GLASS GRANITE MARBLE ETC..
A12: AGGREGATE SPREADER | B12: OPERATOR | C12: OPERATOR: PAVER (Asphalt, Aggregate and Concrete) | D12: OPERATES A MACHINE/LEVERS TO CONTROL SPREADING AND LEVELING TO APPROXIMATE GRADE AND CONTOUR ASPHALTIC CONCRETE OR PORTLAND CEMENT CONCRETE AS WELL AS SLAG OR OTHER AGGREGATES FOR SURFACE TREATMENT, OVER CONCRETE PAVING FORMS OR SUBGRADE OF HIGHWAY.
A13: AGGREGATE TRUCK | B13: OPERATOR | C13: DISTRIBUTOR | D13: OPERATES DISTRIBUTOR THAT SPREADS MATERIAL EVENLY ACROSS ROADWAY; INCLUDES SAND AGGREGATE OR BITUMINOUS MATERIALS; SETS SPRAY BAR AND OPERATES VALVES AND LEVERS TO CONTROL DISTRIBUTION OF OIL OR BITUMINOUS LIQUID PRIME TACK ETC.
A14: AIR TOOL OPERATOR | B14: LABORER | C14: POWER TOOL OPERATOR | D14: USES SMALL HAND HELD POWER TOOLS DRIVEN BY COMPRESSED AIR GASOLINE OR ELECTRICAL POWER TO PERFORM VARIOUS TYPES OF WORK THAT MAY INVOLVE SAWING GRINDING CUTTING CHIPPING TRENCHING DIGGING BREAKING OF CONCRETE PAVEMENT OR WOOD ON A PROJECT.
A15: ALL CRANES WITH BOOM LENGTH 150 FEET AND OVER WITH OR WITHOUT JIB FRICTION | B15: OPERATOR | C15: CRANE GROUP 1 | D15: OPERATES A CRANE DRAGLINE ETC. TO HOIST AND MOVE MATERIALS RAISE AND LOWER HEAVY WEIGHTS OPERATIONS MAY INVOLVE USE OF DRAG BUCKET CLAMSHELL ORANGE PEEL AND OTHER RELATED ATTACHMENTS.
A16: ALL TOWER CRANES MOBILE | B16: OPERATOR | C16: CRANE GROUP 1 | D16: OPERATES A CRANE DRAGLINE ETC. TO HOIST AND MOVE MATERIALS RAISE AND LOWER HEAVY WEIGHTS OPERATIONS MAY INVOLVE USE OF DRAG BUCKET CLAMSHELL ORANGE PEEL AND OTHER RELATED ATTACHMENTS.
A17: ALL TYPE OF FLYING CRANES FINISH GRADER | B17: OPERATOR | C17: CRANE GROUP 1 | D17: OPERATES A CRANE DRAGLINE ETC. TO HOIST AND MOVE MATERIALS RAISE AND LOWER HEAVY WEIGHTS OPERATIONS MAY INVOLVE USE OF DRAG BUCKET CLAMSHELL ORANGE PEEL AND OTHER RELATED ATTACHMENTS.
A18: ANTENNATRANS LINE INSTALLER | B18: CRAFTMAN | C18: ANTENNATRANS LINE INSTALLER | D18: INSTALLS COAXIAL CABLE AND ANTENNA AND OTHER RELATED TRANSMISSIONANTENNA SYSTEM DEVICES. MAY OPERATE A BUCKET TRUCK WHEN REQUIRED. VERIFIES THE QUALITY AN TIGHTNESS OF GROUND AND SURGE PROTECTION CONNECTIONS. CONNECTS DEVICES TO POWER SOURCE AND VERIFIES PROPER VOLTAGES. CONFIGURES SYSTEM FROM A REMOTE PERSONAL COMPUTER. VERIFIES ALL CONNECTIONS TO POWER CABLES AND TRANSMITTER.
A19: ASBESTOS ABATEMENT WORKER | B19: CRAFTMAN | C19: ABATEMENT WORKER | D19: INCLUDES PREPARATION WETTING STRIPPING REMOVAL SCRAPING VACUUMING BAGGING AND DISPOSING OF CONTAMINATEDHAZARDOUS MATERIALS WHETHER THEY CONTAIN ASBESTOS OR LEAD. INCLUDES THE REMOVAL APPLICATION OF ALL INSULATING MAERIALS PROTECTIVE COVERINGS COATING AND FINISHING TO TYPES OF SYSTEMS.
A20: ASBESTOS REMOVAL TECHNICIAN | B20: CRAFTMAN | C20: ABATEMENT WORKER | D20: INCLUDES PREPARATION WETTING STRIPPING REMOVAL SCRAPING VACUUMING BAGGING AND DISPOSING OF CONTAMINATEDHAZARDOUS MATERIALS WHETHER THEY CONTAIN ASBESTOS OR LEAD. INCLUDES THE REMOVAL APPLICATION OF ALL INSULATING MAERIALS PROTECTIVE COVERINGS COATING AND FINISHING TO TYPES OF SYSTEMS.
A21: ASBESTOS WORKERSINSULATOR | B21: CRAFTMAN | C21: ABATEMENT WORKER | D21: INCLUDES PREPARATION WETTING STRIPPING REMOVAL SCRAPING VACUUMING BAGGING AND DISPOSING OF CONTAMINATEDHAZARDOUS MATERIALS WHETHER THEY CONTAIN ASBESTOS OR LEAD. INCLUDES THE REMOVAL APPLICATION OF ALL INSULATING MAERIALS PROTECTIVE COVERINGS COATING AND FINISHING TO TYPES OF SYSTEMS.
A22: ASPHALT BROOM | B22: OPERATOR | C22: BROOM SWEEPER | D22: OPERATES MACHINE WITH A BROOM ANDOR WATER SPRAYER FOR SETTLING DUST PARTICLES OR OTHER AIR BORN DEBRIS TO SWEEP DEBRIS FROM ROADWAYS OR EXTRACTING DEBRISPARTICLES FROM ROADWAY VIA VACUUMING SYSTEM.
A23: ASPHALT DISTRIBUTOR | B23: OPERATOR | C23: DISTRIBUTOR | D23: OPERATES DISTRIBUTOR THAT SPREADS MATERIAL EVENLY ACROSS ROADWAY; INCLUDES SAND AGGREGATE OR BITUMINOUS MATERIALS; SETS SPRAY BAR AND OPERATES VALVES AND LEVERS TO CONTROL DISTRIBUTION OF OIL OR BITUMINOUS LIQUID PRIME TACK ETC.
A24: ASPHALT DISTRIBUTOR TRUCK DRIVER | B24: OPERATOR | C24: DISTRIBUTOR | D24: OPERATES DISTRIBUTOR THAT SPREADS MATERIAL EVENLY ACROSS ROADWAY; INCLUDES SAND AGGREGATE OR BITUMINOUS MATERIALS; SETS SPRAY BAR AND OPERATES VALVES AND LEVERS TO CONTROL DISTRIBUTION OF OIL OR BITUMINOUS LIQUID PRIME TACK ETC.
A25: ASPHALT HEATER | B25: OPERATOR | C25: ASPHALT HEATER | D25: SETS UP AND MAINTAINS THE OPERATION OF A PORTABLE JOBSITE ASPHALT HEATER MACHINE.
A26: ASPHALT LUTEMAN | B26: LABORER | C26: ASPHALT RAKER | D26: FOLLOWS PAVING EQUIPMENT WHILE REWORKING RAISINGLOWERING AND SMOOTHING NEW ASPHALT JOINTS WITH LUTE TOOL AS HOT MIX ASPHALT IS BEING PLACED.
A27: ASPHALT PAVER | B27: OPERATOR | C27: OPERATOR: PAVER (Asphalt, Aggregate and Concrete) | D27: OPERATES A MACHINE/LEVERS TO CONTROL SPREADING AND LEVELING TO APPROXIMATE GRADE AND CONTOUR ASPHALTIC CONCRETE OR PORTLAND CEMENT CONCRETE AS WELL AS SLAG OR OTHER AGGREGATES FOR SURFACE TREATMENT, OVER CONCRETE PAVING FORMS OR SUBGRADE OF HIGHWAY.
A28: ASPHALT PAVING SPREADER | B28: OPERATOR | C28: OPERATOR: PAVER (Asphalt, Aggregate and Concrete) | D28: OPERATES A MACHINE/LEVERS TO CONTROL SPREADING AND LEVELING TO APPROXIMATE GRADE AND CONTOUR ASPHALTIC CONCRETE OR PORTLAND CEMENT CONCRETE AS WELL AS SLAG OR OTHER AGGREGATES FOR SURFACE TREATMENT, OVER CONCRETE PAVING FORMS OR SUBGRADE OF HIGHWAY.
A29: ASPHALT PLANT | B29: OPERATOR | C29: ASPHALT PLANT | D29: TENDS AN AGGREGATE DRYING DRUM OF AN ASPHALT PLANT. CONTROLS THE HEAT APPLIED TO DRUM STARTS AND STOPS AGGREGATE LOADING CONVEYORS AND ROTATION OF DRUM AND ASCERTAINS BY INSPECTION THAT AGGREGATES ARE FLOWING THROUGH DRUM PROPERLY.
A30: ASPHALT PLANT DRYER OPERATOR | B30: OPERATOR | C30: ASPHALT PLANT | D30: TENDS AN AGGREGATE DRYING DRUM OF AN ASPHALT PLANT. CONTROLS THE HEAT APPLIED TO DRUM STARTS AND STOPS AGGREGATE LOADING CONVEYORS AND ROTATION OF DRUM AND ASCERTAINS BY INSPECTION THAT AGGREGATES ARE FLOWING THROUGH DRUM PROPERLY.
A31: ASPHALT RAKER | B31: LABORER | C31: ASPHALT RAKER | D31: FOLLOWS PAVING EQUIPMENT WHILE REWORKING RAISINGLOWERING AND SMOOTHING NEW ASPHALT JOINTS WITH LUTE TOOL AS HOT MIX ASPHALT IS BEING PLACED.
A32: ASPHALT ROLLER | B32: OPERATOR | C32: ROLLER | D32: OPERATES A TANDEM OR THREEWHEELED STEEL OR RUBBER TIRE ROLLER IN CONJUNCTION WITH FINISHING OPERATIONS ON ASPHALT BASES OR PERFORMS INITIALPRELIMINARY ROLLING TO OBTAIN COMPACTION OF SUBGRADE OR BASE MATERIAL PRIOR TO THE FINISHING OPERATION.
A33: ASPHALT SCREED | B33: OPERATOR | C33: ASPHALT SCREED | D33: TURNS HAND WHEELS TO RAISE OR LOWER SCREEDS ON AN ASPHALT PAVING MACHINE TO ENSURE THE ASPHALT SURFACE WILL BE TO THE PROPER GRADE AND FINISH.
A34: ASPHALT SERVICE TRUCK | B34: TRUCK OPERATOR | C34: SERVICEFUEL TRUCK | D34: DRIVES AND OPERATES SERVICEFUEL TRUCK
A35: ASPHALT SHOVELER | B35: LABORER | C35: ASPHALT RAKER | D35: FOLLOWS PAVING EQUIPMENT WHILE REWORKING RAISINGLOWERING AND SMOOTHING NEW ASPHALT JOINTS WITH LUTE TOOL AS HOT MIX ASPHALT IS BEING PLACED.
A36: ASPHALT SHUTTLE BUGGY | B36: OPERATOR | C36: MATERIAL TRANSFER VEHICLE | D36: ENSURES EQUIPMENT PROPERLY HOLDS AND TRANSFERS ASPHALT PAVEMENT BETWEEN THE DUMP TRUCKS AND THE PAVING MACHINE DURING PAVING OPERATIONS.
A37: ASPHALT SPREADER | B37: OPERATOR | C37: OPERATOR: PAVER (Asphalt, Aggregate and Concrete) | D37: OPERATES A MACHINE/LEVERS TO CONTROL SPREADING AND LEVELING TO APPROXIMATE GRADE AND CONTOUR ASPHALTIC CONCRETE OR PORTLAND CEMENT CONCRETE AS WELL AS SLAG OR OTHER AGGREGATES FOR SURFACE TREATMENT, OVER CONCRETE PAVING FORMS OR SUBGRADE OF HIGHWAY.
A38: ASSISTANT SIGNAL MAINTAINER | B38: LABORER | C38: TRAFFIC SIGNAL INSTALLATION | D38: READS TRAFFIC BLUE PRINTS AND INTERPRETS PLAN SET LAYOUTS INSTALLATION AND WIRING OF TRAFFIC SIGNAL EQUIPMENT. INSTALLS POLESSPAN WIRE CONTROL CABLES MAST ARMS SIGNAL HEADS LOOPS CONDUIT SERVICE CONTROLLERS WIRING AND RELATED PARTS MATERIALS AND COMPONENTS.
A39: ATTENUATOR DRIVER | B39: TRUCK DRIVER | C39: TRAFFIC CONTROL SPECIALIST | D39: INSTALLS AND SETS UP TEMPORARY TRAFFIC CONTROL DEVICES. ENSURES LANE CLOSURES ARE SET UP AND MAINTAINED PROPERLY. PROVIDES PROPER MAINTENANCE OF TRAFFIC USING APPROPRIATE ADVANCED WARNING DEVICES WITHIN THE APPLICABLE CONSTRUCTION OPERATION ZONES.
A40: ATTENUATOR ERECTOR | B40: LABORER | C40: GUARDRAIL ERECTOR | D40: CONSTRUCTS POST FOUNDATIONS ERECTS POSTS AND STRUCTURES AND ATTACHES GUARDRAIL.
A41: ATTENUATOR TRUCK | B41: TRUCK DRIVER | C41: TRAFFIC CONTROL SPECIALIST | D41: INSTALLS AND SETS UP TEMPORARY TRAFFIC CONTROL DEVICES. ENSURES LANE CLOSURES ARE SET UP AND MAINTAINED PROPERLY. PROVIDES PROPER MAINTENANCE OF TRAFFIC USING APPROPRIATE ADVANCED WARNING DEVICES WITHIN THE APPLICABLE CONSTRUCTION OPERATION ZONES.
A42: ATTENUATORQUAD GUARD INSTALLER | B42: LABORER | C42: GUARDRAIL ERECTOR | D42: CONSTRUCTS POST FOUNDATIONS ERECTS POSTS AND STRUCTURES AND ATTACHES GUARDRAIL.
A43: AUDIBLE PVMT MARKER INSTALLER | B43: OPERATOR | C43: RUMBLE STRIP MACHINE | D43: OPERATES EQUIPMENT THAT RAISE AND LOWER HYDRAULICS TO FORM AN INDENTION OR RAISED ASPHALT STRIPS IN THE SHOULDER OF THE HIGHWAY TO ALERT DRIVERS THAT THEY ARE OUT OF THE TRAVEL LANE
A44: AUGER | B44: OPERATOR | C44: DRILL | D44: SETS UP AND OPERATES DRILLING MACHINE THAT DRILLS HOLES THROUGH CONCRETE ROCK ETC. LEVELS MACHINE BY PLACING TIMBERS UNDER WHEELS INSETS AND FASTENS DRILL STEEL IN CHUCK ADJUSTS ANGLE OF DRILL TOWER AND BOLTS IT IN POSITION CONTROLS DRILLING BY MOVING LEVERS.
A45: AUTOMATED TRIMMER | B45: OPERATOR | C45: SCRAPER | D45: OPERATES MACHINERY THAT SCRAPES AND TRANSPORTS EARTHWORK MATERIAL.
A46: BACKHOE | B46: OPERATOR | C46: BACKHOE | D46: OPERATES A MACHINE CONTAINING A POWER SHOVEL TO REMOVE MATERIAL.
A47: BACKHOE EXCAVATOR | B47: OPERATOR | C47: EXCAVATOR | D47: OPERATES A MACHINE CONTAINING POWER SHOVEL TO REMOVE MATERIAL.
A48: BACKHOE LOADER COMBO | B48: OPERATOR | C48: BACKHOE LOADER COMBO | D48: OPERATES A MACHINE WHICH USUALLY HAS A FRONT BUCKET AND A REARMOUNTED POWER SHOVEL.
A49: BASIC DIVER | B49: CRAFTMAN | C49: DIVER | D49: WORKS PRIMARILY UNDERWATER OR AT THE WATERS SURFACE. PRIMARY EQUIPMENT UTILIZED IS SCUBA GEAR ANDOR SNORKEL. PERFORMS NUMEROUS DUTIES MOSTLY WITH VARIOUS TYPES OF HAND TOOLS.
A50: BLADEGRADER | B50: OPERATOR | C50: MOTOR GRADER | D50: OPERATES POWER DRIVEN GRADING MACHINE MANIPULATES HAND CONTROLS TO GUIDE MACHINE AND SET DEPTH AND ANGLE OF GRADING BLADE TO PERFORM FINISHED WORK SUCH AS SCRAPING AND LEVELING DIRT ON HIGHWAYS AND FINISHING SUBGRADE FOR ROADS AND THE FINISHED GRADING OF ROAD BASE MATERIALS.
A51: BLASTER | B51: OPERATOR | C51: BLASTER | D51: USES A SAND BEAD SODA OR WATER BLASTER TO REMOVE PAINT RUST OR OTHER MATERIAL FROM SURFACES.
A52: BLOCK MASON | B52: CRAFTMAN | C52: CEMENT MASON | D52: LAYS OUT WORK FROM PLANS AND SETS UP TEMPLATE AND GUIDELINES LAYS BRICK CONCRETE BLOCK CLAY TILES OR ARCHITECTURAL ROADWAY BRICK PAVERS IN CONSTRUCTION AND USES MORTAR OF VARIOUS TYPES.
A53: BOAT CAPTAIN | B53: CRAFTMAN | C53: BOAT CAPTAIN | D53: OPERATES A BOAT OR BARGE IN THE SUPPORT OF CONSTRUCTION PROJECTS.
A54: BOAT OPERATOR | B54: CRAFTMAN | C54: BOAT CAPTAIN | D54: OPERATES A BOAT OR BARGE IN THE SUPPORT OF CONSTRUCTION PROJECTS.
A55: BOBCATBOBCATSKID STEER OPERATORBOBCATSKIDSTEER | B55: OPERATOR | C55: SKID STEER | D55: OPERATES AN ENGINEPOWERED MACHINE USED WITH A WIDE VARIETY OF LABORSAVING TOOLS OR ATTACHMENTS.
A56: BOOM AUGER | B56: OPERATOR | C56: DRILL | D56: SETS UP AND OPERATES DRILLING MACHINE THAT DRILLS HOLES THROUGH CONCRETE ROCK ETC. LEVELS MACHINE BY PLACING TIMBERS UNDER WHEELS INSETS AND FASTENS DRILL STEEL IN CHUCK ADJUSTS ANGLE OF DRILL TOWER AND BOLTS IT IN POSITION CONTROLS DRILLING BY MOVING LEVERS.
A57: BOOM TRUCK | B57: OPERATOR | C57: BOOM TRUCK | D57: OPERATES A TRUCK WITH A MOUNTED BOOMNBSPTO ERECT SIGNS TO STAND POSTS AND STRUCTURES TO SET POLES AND OTHER SIMILAR OPERATIONS.
A58: BOOMAUGER TRUCK | B58: OPERATOR | C58: DRILL | D58: SETS UP AND OPERATES DRILLING MACHINE THAT DRILLS HOLES THROUGH CONCRETE ROCK ETC. LEVELS MACHINE BY PLACING TIMBERS UNDER WHEELS INSETS AND FASTENS DRILL STEEL IN CHUCK ADJUSTS ANGLE OF DRILL TOWER AND BOLTS IT IN POSITION CONTROLS DRILLING BY MOVING LEVERS.
A59: BORE MACHINE | B59: OPERATOR | C59: BORING MACHINE | D59: OPERATES A MACHINE WHICH BORES HORIZONTALLY UNDER ROADWAYS ETC. TO MAKE WAY FOR PIPE CABLE ETC.
A60: BORE OPERATOR | B60: OPERATOR | C60: BORING MACHINE | D60: OPERATES A MACHINE WHICH BORES HORIZONTALLY UNDER ROADWAYS ETC. TO MAKE WAY FOR PIPE CABLE ETC.
A61: BORING GROUND TECHNICIAN | B61: LABORER | C61: BORING GROUND TECHNICIAN | D61: LOCATES UTILITIES VIA HAND DIGS OPERATES RECOVERY TANKTRAILER FOR REMOVAL OF SLURRY MIX BORING GELSLURRY OPERATES EQUIPMENT ASSOCIATED WITH BORING GELSLURRY SLURRY TRUCK WHEN APPLICAGLE AND CONNECTS PIPE TO ROD.
A62: BORING MACHINE | B62: OPERATOR | C62: BORING MACHINE | D62: OPERATES A MACHINE WHICH BORES HORIZONTALLY UNDER ROADWAYS ETC. TO MAKE WAY FOR PIPE CABLE ETC.
A63: BORING MACHINE LOCATOR | B63: LABORER | C63: BORING LOCATOR | D63: LOCATES THE DRILL HEAD AND NAVIGATES THE DIRECTON OF THE BORE.
A64: BORING ROD LOCATOR | B64: LABORER | C64: BORING LOCATOR | D64: LOCATES THE DRILL HEAD AND NAVIGATES THE DIRECTON OF THE BORE.
A65: BOX BLADE TRACTOR OPERATOR | B65: OPERATOR | C65: TRACTOR | D65: OPERATES A MACHINE USED TO PULL GRADERSBOX BLADES PLOWS HARROWS ROLLERS AND TRAILERS OR HAS ATTACHMENTS FOR POST HOLE DIGGING.
A66: BREAKER | B66: OPERATOR | C66: CRUSHER | D66: OPERATES A TRUCK MOUNTED DEVICE TO BREAK UP ROADWAY MATERIAL.
A67: BRICK INSTALLER | B67: CRAFTMAN | C67: CEMENT MASON | D67: LAYS OUT WORK FROM PLANS AND SETS UP TEMPLATE AND GUIDELINES LAYS BRICK CONCRETE BLOCK CLAY TILES OR ARCHITECTURAL ROADWAY BRICK PAVERS IN CONSTRUCTION AND USES MORTAR OF VARIOUS TYPES.
A68: BRICK MASON MASON | B68: CRAFTMAN | C68: CEMENT MASON | D68: LAYS OUT WORK FROM PLANS AND SETS UP TEMPLATE AND GUIDELINES LAYS BRICK CONCRETE BLOCK CLAY TILES OR ARCHITECTURAL ROADWAY BRICK PAVERS IN CONSTRUCTION AND USES MORTAR OF VARIOUS TYPES.
A69: BRICK PAVER INSTALLER | B69: CRAFTMAN | C69: CEMENT MASON | D69: LAYS OUT WORK FROM PLANS AND SETS UP TEMPLATE AND GUIDELINES LAYS BRICK CONCRETE BLOCK CLAY TILES OR ARCHITECTURAL ROADWAY BRICK PAVERS IN CONSTRUCTION AND USES MORTAR OF VARIOUS TYPES.
A70: BRICKLAYER | B70: CRAFTMAN | C70: CEMENT MASON | D70: LAYS OUT WORK FROM PLANS AND SETS UP TEMPLATE AND GUIDELINES LAYS BRICK CONCRETE BLOCK CLAY TILES OR ARCHITECTURAL ROADWAY BRICK PAVERS IN CONSTRUCTION AND USES MORTAR OF VARIOUS TYPES.
A71: BRICKLAYERBRICKMASON | B71: CRAFTMAN | C71: CEMENT MASON | D71: LAYS OUT WORK FROM PLANS AND SETS UP TEMPLATE AND GUIDELINES LAYS BRICK CONCRETE BLOCK CLAY TILES OR ARCHITECTURAL ROADWAY BRICK PAVERS IN CONSTRUCTION AND USES MORTAR OF VARIOUS TYPES.
A72: BRIDGE CARPENTER | B72: CRAFTMAN | C72: CARPENTER EXCLUDES FORM WORK | D72: BUILDS ROUGH WOODEDN STRUCTURES IN PLACE OR IN UNITS TO BE ERECTED LATER NORMALLY USED ON HIGHWAY BRIDGES CULVERTS GRADE SEPARATORS INTERCHANGES DRAINAGE STRUCTURES AND OTHER HIGHWAY CONSTRUCTION WORK NORMALLY CONSISTS OF USING A VARIETY OF HAND TOOLS PORTABLE POWER TOOLS AND MEASURING INSTRUMENTS.
A73: BRIDGE SCREED | B73: OPERATOR | C73: CONCRETE SCREED | D73: OPERATES A SELFPROPELLED MACHINE THAT STRIKES OFF AND FINISHES CONCRETE TO ENSURE PROPER LEVEL.
A74: BROOM | B74: OPERATOR | C74: BROOM SWEEPER | D74: OPERATES MACHINE WITH A BROOM ANDOR WATER SPRAYER FOR SETTLING DUST PARTICLES OR OTHER AIR BORN DEBRIS TO SWEEP DEBRIS FROM ROADWAYS OR EXTRACTING DEBRISPARTICLES FROM ROADWAY VIA VACUUMING SYSTEM.
A75: BROOM SWEEPER | B75: OPERATOR | C75: BROOM SWEEPER | D75: OPERATES MACHINE WITH A BROOM ANDOR WATER SPRAYER FOR SETTLING DUST PARTICLES OR OTHER AIR BORN DEBRIS TO SWEEP DEBRIS FROM ROADWAYS OR EXTRACTING DEBRISPARTICLES FROM ROADWAY VIA VACUUMING SYSTEM.
A76: BROOM SWEEPER VAC MACHINE | B76: OPERATOR | C76: BROOM SWEEPER | D76: OPERATES MACHINE WITH A BROOM ANDOR WATER SPRAYER FOR SETTLING DUST PARTICLES OR OTHER AIR BORN DEBRIS TO SWEEP DEBRIS FROM ROADWAYS OR EXTRACTING DEBRISPARTICLES FROM ROADWAY VIA VACUUMING SYSTEM.
A77: BROOM TRACTOR | B77: OPERATOR | C77: BROOM SWEEPER | D77: OPERATES MACHINE WITH A BROOM ANDOR WATER SPRAYER FOR SETTLING DUST PARTICLES OR OTHER AIR BORN DEBRIS TO SWEEP DEBRIS FROM ROADWAYS OR EXTRACTING DEBRISPARTICLES FROM ROADWAY VIA VACUUMING SYSTEM.
A78: BROOM TRACTOR OPEERATOR | B78: OPERATOR | C78: BROOM SWEEPER | D78: OPERATES MACHINE WITH A BROOM ANDOR WATER SPRAYER FOR SETTLING DUST PARTICLES OR OTHER AIR BORN DEBRIS TO SWEEP DEBRIS FROM ROADWAYS OR EXTRACTING DEBRISPARTICLES FROM ROADWAY VIA VACUUMING SYSTEM.
A79: BUCKET TRUCK | B79: OPERATOR | C79: BUCKET TRUCK | D79: OPERATES A TRUCK WITH A MOUNTED BOOM BUCKET TO ERECT SIGNS TO STAND POSTS AND STRUCTURES TO SET POLES AND OTHER SIMILAR OPERATIONS.
A80: BUCKET TRUCK LOADER | B80: OPERATOR | C80: BUCKET TRUCK | D80: OPERATES A TRUCK WITH A MOUNTED BOOM BUCKET TO ERECT SIGNS TO STAND POSTS AND STRUCTURES TO SET POLES AND OTHER SIMILAR OPERATIONS.
A81: BULLDOZER | B81: OPERATOR | C81: BULLDOZER | D81: OPERATES A TRACTOR WITH A CONCAVE BLADE MOUNTED IN FRONT OF THE MACHINE TO LEVEL PUSH AND DISTRIBUTE EARTH AND OTHER MATERIALS.
A82: BUNCHER | B82: OPERATOR | C82: FELLER BUNCHER | D82: OPERATES EQUIPMENT THAT CUTS AND GATHERS TREES PRIOR TO FELLING.
A83: CABINET INSTALLER | B83: LABORER | C83: TRAFFIC SIGNAL LABORER | D83: UNDER THE DIRECTION OF THE TRAFFIC SIGNAL INSTALLER ASSISTS IN THE PHYSICAL TASK REQUIRED FOR THE INSTALLATION OF POLES MAST ARMS SIGNAL HEADS AND NBSP LOOPS. THIS POSITION DOES NO INSTALLATIONS.
A84: CAMERA TRUCK | B84: OPERATOR | C84: CAMERA TRUCK | D84: OPERATES CAMERA TO VIEW PIPE OR OTHER CONCEALED AREAS.
A85: CAMERATV TRUCK | B85: OPERATOR | C85: CAMERA TRUCK | D85: OPERATES CAMERA TO VIEW PIPE OR OTHER CONCEALED AREAS.
A86: CARPENTER | B86: CRAFTMAN | C86: CARPENTER EXCLUDES FORM WORK | D86: BUILDS ROUGH WOODEDN STRUCTURES IN PLACE OR IN UNITS TO BE ERECTED LATER NORMALLY USED ON HIGHWAY BRIDGES CULVERTS GRADE SEPARATORS INTERCHANGES DRAINAGE STRUCTURES AND OTHER HIGHWAY CONSTRUCTION WORK NORMALLY CONSISTS OF USING A VARIETY OF HAND TOOLS PORTABLE POWER TOOLS AND MEASURING INSTRUMENTS.
A87: CARPENTER DOCK BUILDER | B87: CRAFTMAN | C87: CARPENTER EXCLUDES FORM WORK | D87: BUILDS ROUGH WOODEDN STRUCTURES IN PLACE OR IN UNITS TO BE ERECTED LATER NORMALLY USED ON HIGHWAY BRIDGES CULVERTS GRADE SEPARATORS INTERCHANGES DRAINAGE STRUCTURES AND OTHER HIGHWAY CONSTRUCTION WORK NORMALLY CONSISTS OF USING A VARIETY OF HAND TOOLS PORTABLE POWER TOOLS AND MEASURING INSTRUMENTS.
A88: CARPENTER EXCLUDES FORM WORK | B88: CRAFTMAN | C88: CARPENTER EXCLUDES FORM WORK | D88: BUILDS ROUGH WOODEDN STRUCTURES IN PLACE OR IN UNITS TO BE ERECTED LATER NORMALLY USED ON HIGHWAY BRIDGES CULVERTS GRADE SEPARATORS INTERCHANGES DRAINAGE STRUCTURES AND OTHER HIGHWAY CONSTRUCTION WORK NORMALLY CONSISTS OF USING A VARIETY OF HAND TOOLS PORTABLE POWER TOOLS AND MEASURING INSTRUMENTS.
A89: CARPENTER HIGHWAYBRIDGE | B89: CRAFTMAN | C89: CARPENTER EXCLUDES FORM WORK | D89: BUILDS ROUGH WOODEDN STRUCTURES IN PLACE OR IN UNITS TO BE ERECTED LATER NORMALLY USED ON HIGHWAY BRIDGES CULVERTS GRADE SEPARATORS INTERCHANGES DRAINAGE STRUCTURES AND OTHER HIGHWAY CONSTRUCTION WORK NORMALLY CONSISTS OF USING A VARIETY OF HAND TOOLS PORTABLE POWER TOOLS AND MEASURING INSTRUMENTS.
A90: CARPENTER INCLUDES FORM WORK | B90: CRAFTMAN | C90: CARPENTER INCLUDES FORM WORK | D90: BUILDS ROUGH WOODEDN STRUCTURES IN PLACE OR IN UNITS TO BE ERECTED LATER NORMALLY USED ON HIGHWAY BRIDGES CULVERTS GRADE SEPARATORS INTERCHANGES DRAINAGE STRUCTURES AND OTHER HIGHWAY CONSTRUCTION WORK NORMALLY CONSISTS OF USING A VARIETY OF HAND TOOLS PORTABLE POWER TOOLS AND MEASURING INSTRUMENTS INCLUDING PREFAB FORMS.
A91: CCTV TRUCK | B91: OPERATOR | C91: CAMERA TRUCK | D91: OPERATES CAMERA TO VIEW PIPE OR OTHER CONCEALED AREAS.
A92: CEMENT MASON | B92: CRAFTMAN | C92: CEMENT MASON | D92: LAYS OUT WORK FROM PLANS AND SETS UP TEMPLATE AND GUIDELINES LAYS BRICK CONCRETE BLOCK CLAY TILES OR ARCHITECTURAL ROADWAY BRICK PAVERS IN CONSTRUCTION AND USES MORTAR OF VARIOUS TYPES.
A93: CHAIN SAW OPERATOR | B93: LABORER | C93: POWER TOOL OPERATOR | D93: USES SMALL HAND HELD POWER TOOLS DRIVEN BY COMPRESSED AIR GASOLINE OR ELECTRICAL POWER TO PERFORM VARIOUS TYPES OF WORK THAT MAY INVOLVE SAWING GRINDING CUTTING CHIPPING TRENCHING DIGGING BREAKING OF CONCRETE PAVEMENT OR WOOD ON A PROJECT.
A94: CHAIN SAW OPERATOR | B94: LABORER | C94: POWER TOOL OPERATOR | D94: USES SMALL HAND HELD POWER TOOLS DRIVEN BY COMPRESSED AIR GASOLINE OR ELECTRICAL POWER TO PERFORM VARIOUS TYPES OF WORK THAT MAY INVOLVE SAWING GRINDING CUTTING CHIPPING TRENCHING DIGGING BREAKING OF CONCRETE PAVEMENT OR WOOD ON A PROJECT.
A95: CHIPPING HAMMER | B95: OPERATOR | C95: LARGE POWER TOOL OPERATOR | D95: OPERATES STAND BEHIND AND PUSH HAND TOOLS DRIVEN BY COMPRESSED AIR GASOLINE OR ELECTRICAL POWER TO PERFORM SUCH WORK AS MOWERS SAWS AND TOOLS USED FOR BREAKING OLD PAVEMENT LOOSENING OR DIGGING HARD EARTH TRIMMING BOTTOM AND SIDES OF TRENCHES BREAKING LARGE ROCKS DRIVING SHEETING CHIPPING CONCRETE TRIMMING OR CUTTING STONE CAULKING STEEL PLATES.
A96: CHIPPING MACHINE | B96: OPERATOR | C96: LARGE POWER TOOL OPERATOR | D96: OPERATES STAND BEHIND AND PUSH HAND TOOLS DRIVEN BY COMPRESSED AIR GASOLINE OR ELECTRICAL POWER TO PERFORM SUCH WORK AS MOWERS SAWS AND TOOLS USED FOR BREAKING OLD PAVEMENT LOOSENING OR DIGGING HARD EARTH TRIMMING BOTTOM AND SIDES OF TRENCHES BREAKING LARGE ROCKS DRIVING SHEETING CHIPPING CONCRETE TRIMMING OR CUTTING STONE CAULKING STEEL PLATES.
A97: CLAW TRUCK | B97: OPERATOR | C97: CLAW TRUCK | D97: OPERATES A TRUCK WITH A TELESCOPING CLAW THAT IS USED TO LOAD CUT TREES AND DEBRI ONTO A TRUCK.
A98: CLIMBERS | B98: OPERATOR | C98: CRANE GROUP 1 | D98: OPERATES A CRANE DRAGLINE ETC. TO HOIST AND MOVE MATERIALS RAISE AND LOWER HEAVY WEIGHTS OPERATIONS MAY INVOLVE USE OF DRAG BUCKET CLAMSHELL ORANGE PEEL AND OTHER RELATED ATTACHMENTS.
A99: COMMERCIAL DIVER | B99: CRAFTMAN | C99: DIVER | D99: WORKS PRIMARILY UNDERWATER OR AT THE WATERS SURFACE. PRIMARY EQUIPMENT UTILIZED IS SCUBA GEAR ANDOR SNORKEL. PERFORMS NUMEROUS DUTIES MOSTLY WITH VARIOUS TYPES OF HAND TOOLS.
A100: COMMERCIAL TENDER | B100: LABORER | C100: DIVER TENDER | D100: LAND BASED ACTS AS AN ASSISTANT OR WATCH OUT FOR THE DIVER.
A101: COMMON OR GENERAL | B101: LABORER | C101: COMMON OR GENERAL | D101: UNSKILLED OR SEMISKILLED LEVEL OF LABORER. MAY WORK IN MANY DIFFERENT FIELDS BUT HAS MINIMAL OR LIMITED EXPERIENCE.
A102: CONC CURBSLIPFORM MACH | B102: OPERATOR | C102: CONCRETE SLIPFORM MACHINE | D102: OPERATES A MACHINE FOR PLACING CURBGUTTER BARRIER WALL OR SIDEWALK WITH CONCRETE ADJUSTS SENSORS ON THE MACHINE TO CONTROL HORIZONTAL AND VERTICAL ALIGNMENT
A103: CONC. PUMP TRAILER MOUNT | B103: OPERATOR | C103: CONCRETE PUMP TRAILERTRUCK | D103: MONITOR THE PRESSURE AND CONSISTENCY OF THE CONCRETE WHILE CONTROLLING WITH A REMOTE BOX PUMP IS MOUNTED ON TRUCKTRAILERBOOM.
A104: CONC. PUMP TRUCK MOUNTED | B104: OPERATOR | C104: CONCRETE PUMP TRAILERTRUCK | D104: MONITOR THE PRESSURE AND CONSISTENCY OF THE CONCRETE WHILE CONTROLLING WITH A REMOTE BOX PUMP IS MOUNTED ON TRUCKTRAILERBOOM.
A105: CONC. SLIPFORM MACHINE | B105: OPERATOR | C105: CONCRETE SLIPFORM MACHINE | D105: OPERATES A MACHINE FOR PLACING CURBGUTTER BARRIER WALL OR SIDEWALK WITH CONCRETE ADJUSTS SENSORS ON THE MACHINE TO CONTROL HORIZONTAL AND VERTICAL ALIGNMENT
A106: CONCRETE BOOM TRUCK | B106: OPERATOR | C106: BUCKET TRUCK | D106: OPERATES A TRUCK WITH A MOUNTED BOOM BUCKET TO ERECT SIGNS TO STAND POSTS AND STRUCTURES TO SET POLES AND OTHER SIMILAR OPERATIONS.
A107: CONCRETE CORE RIG | B107: OPERATOR | C107: CORE DRILL | D107: OPERATES CORE DRILLING EQUIPMENT TO DRILL HOLES OF A SPECIFIED SIZE IN A CONCRETE WALL OR SLAB
A108: CONCRETE CURB MACHINE | B108: OPERATOR | C108: CONCRETE SLIPFORM MACHINE | D108: OPERATES A MACHINE FOR PLACING CURBGUTTER BARRIER WALL OR SIDEWALK WITH CONCRETE ADJUSTS SENSORS ON THE MACHINE TO CONTROL HORIZONTAL AND VERTICAL ALIGNMENT
A109: CONCRETE CURBSLIPFORM | B109: OPERATOR | C109: CONCRETE SLIPFORM MACHINE | D109: OPERATES A MACHINE FOR PLACING CURBGUTTER BARRIER WALL OR SIDEWALK WITH CONCRETE ADJUSTS SENSORS ON THE MACHINE TO CONTROL HORIZONTAL AND VERTICAL ALIGNMENT
A110: CONCRETE CUTTER | B110: OPERATOR | C110: LARGE POWER TOOL OPERATOR | D110: OPERATES STAND BEHIND AND PUSH HAND TOOLS DRIVEN BY COMPRESSED AIR GASOLINE OR ELECTRICAL POWER TO PERFORM SUCH WORK AS MOWERS SAWS AND TOOLS USED FOR BREAKING OLD PAVEMENT LOOSENING OR DIGGING HARD EARTH TRIMMING BOTTOM AND SIDES OF TRENCHES BREAKING LARGE ROCKS DRIVING SHEETING CHIPPING CONCRETE TRIMMING OR CUTTING STONE CAULKING STEEL PLATES.
A111: CONCRETE CUTTERDRILLER | B111: OPERATOR | C111: LARGE POWER TOOL OPERATOR | D111: OPERATES STAND BEHIND AND PUSH HAND TOOLS DRIVEN BY COMPRESSED AIR GASOLINE OR ELECTRICAL POWER TO PERFORM SUCH WORK AS MOWERS SAWS AND TOOLS USED FOR BREAKING OLD PAVEMENT LOOSENING OR DIGGING HARD EARTH TRIMMING BOTTOM AND SIDES OF TRENCHES BREAKING LARGE ROCKS DRIVING SHEETING CHIPPING CONCRETE TRIMMING OR CUTTING STONE CAULKING STEEL PLATES.
A112: CONCRETE CUTTERDRILLER | B112: LABORER | C112: POWER TOOL OPERATOR | D112: USES SMALL HAND HELD POWER TOOLS DRIVEN BY COMPRESSED AIR GASOLINE OR ELECTRICAL POWER TO PERFORM VARIOUS TYPES OF WORK THAT MAY INVOLVE SAWING GRINDING CUTTING CHIPPING TRENCHING DIGGING BREAKING OF CONCRETE PAVEMENT OR WOOD ON A PROJECT.
A113: CONCRETE FINISHER | B113: CRAFTMAN | C113: CONCRETE FINISHER | D113: LEVELS FRESH CONCRETE PAVING SURFACE TO DESIRED GRADE AND CONTOUR BY USE OF TROWELS AND FLOATS AND PUSHING AND PULLING SCREED OR TEMPLATE OVER THE SURFACE. SMOOTHES SURFACE WITH A FLOAT OR STRAIGHTEDGE. MAY FORM AND FINISH EDGES AND JOINTS. MAY DO FINISHING WORK ON CURBS AND GUTTERS AND OTHER HGHWAY SRUCTURES.
A114: CONCRETE FINISHER MACHINE | B114: OPERATOR | C114: LARGE POWER TOOL OPERATOR | D114: OPERATES STAND BEHIND AND PUSH HAND TOOLS DRIVEN BY COMPRESSED AIR GASOLINE OR ELECTRICAL POWER TO PERFORM SUCH WORK AS MOWERS SAWS AND TOOLS USED FOR BREAKING OLD PAVEMENT LOOSENING OR DIGGING HARD EARTH TRIMMING BOTTOM AND SIDES OF TRENCHES BREAKING LARGE ROCKS DRIVING SHEETING CHIPPING CONCRETE TRIMMING OR CUTTING STONE CAULKING STEEL PLATES.
A115: CONCRETE FORM SETTER | B115: LABORER | C115: FORM SETTER | D115: USES PREFAB FORMS THAT FIT TOGETHER ALIGNS AND SETS TO GRADE METAL AND WOODEN FORMS FOR HOLDING CONCRETE MAY INVOLVE PAVING CURB OR OTHER STRUCTURES.
A116: CONCRETE GINDERGROOVER | B116: OPERATOR | C116: GRINDERGROOVER | D116: OPERATES A SELFPROPELLED MACHINE USED IN SCARIFYING AND REMOVING CONCRETE HIGHWAY PAINTTHERMOPLASTIC OR MAY CUT GROOVES IN THE SURFACE OF THE MATERIAL.
A117: CONCRETE GRINDER | B117: OPERATOR | C117: GRINDERGROOVER | D117: OPERATES A SELFPROPELLED MACHINE USED IN SCARIFYING AND REMOVING CONCRETE HIGHWAY PAINTTHERMOPLASTIC OR MAY CUT GROOVES IN THE SURFACE OF THE MATERIAL.
A118: CONCRETE GROOVERGRINDER | B118: OPERATOR | C118: GRINDERGROOVER | D118: OPERATES A SELFPROPELLED MACHINE USED IN SCARIFYING AND REMOVING CONCRETE HIGHWAY PAINTTHERMOPLASTIC OR MAY CUT GROOVES IN THE SURFACE OF THE MATERIAL.
A119: CONCRETE HAND HELD SAW OPERATOR | B119: LABORER | C119: POWER TOOL OPERATOR | D119: USES SMALL HAND HELD POWER TOOLS DRIVEN BY COMPRESSED AIR GASOLINE OR ELECTRICAL POWER TO PERFORM VARIOUS TYPES OF WORK THAT MAY INVOLVE SAWING GRINDING CUTTING CHIPPING TRENCHING DIGGING BREAKING OF CONCRETE PAVEMENT OR WOOD ON A PROJECT.
A120: CONCRETE JOINT SAW | B120: LABORER | C120: POWER TOOL OPERATOR | D120: USES SMALL HAND HELD POWER TOOLS DRIVEN BY COMPRESSED AIR GASOLINE OR ELECTRICAL POWER TO PERFORM VARIOUS TYPES OF WORK THAT MAY INVOLVE SAWING GRINDING CUTTING CHIPPING TRENCHING DIGGING BREAKING OF CONCRETE PAVEMENT OR WOOD ON A PROJECT.
A121: CONCRETE MIXING TRUCK DRIVER | B121: TRUCK OPERATOR | C121: CONCRETE MIXING TRUCK DRIVER | D121: DRIVES TRUCK UNDER A LOADING HOPPER TO RECEIVE SAND GRAVEL CEMENT AND WATER AND STARTS MIXER DELIVERS MIX TO LOCATION FOR UNLOADING MOVES LEVERS ON TRUCK TO RELEASE CONCRETE MIX. ASSEMBLES CHUTES AND CLEANS TRUCK AFTER DELIVERY TO PREVENT CONCRETE FROM HARDENING IN MIXER.
A122: CONCRETE PAVING FINISH MACHINE | B122: OPERATOR | C122: OPERATOR: PAVER (Asphalt, Aggregate and Concrete) | D122: OPERATES A MACHINE/LEVERS TO CONTROL SPREADING AND LEVELING TO APPROXIMATE GRADE AND CONTOUR ASPHALTIC CONCRETE OR PORTLAND CEMENT CONCRETE AS WELL AS SLAG OR OTHER AGGREGATES FOR SURFACE TREATMENT, OVER CONCRETE PAVING FORMS OR SUBGRADE OF HIGHWAY.
A123: CONCRETE PAVING MACHINE | B123: OPERATOR | C123: OPERATOR: PAVER (Asphalt, Aggregate and Concrete) | D123: OPERATES A MACHINE/LEVERS TO CONTROL SPREADING AND LEVELING TO APPROXIMATE GRADE AND CONTOUR ASPHALTIC CONCRETE OR PORTLAND CEMENT CONCRETE AS WELL AS SLAG OR OTHER AGGREGATES FOR SURFACE TREATMENT, OVER CONCRETE PAVING FORMS OR SUBGRADE OF HIGHWAY.
A124: CONCRETE PUMP | B124: OPERATOR | C124: CONCRETE PUMP TRAILERTRUCK | D124: MONITOR THE PRESSURE AND CONSISTENCY OF THE CONCRETE WHILE CONTROLLING WITH A REMOTE BOX PUMP IS MOUNTED ON TRUCKTRAILERBOOM.
A125: CONCRETE PUMP OPERATOR | B125: OPERATOR | C125: CONCRETE PUMP TRAILERTRUCK | D125: MONITOR THE PRESSURE AND CONSISTENCY OF THE CONCRETE WHILE CONTROLLING WITH A REMOTE BOX PUMP IS MOUNTED ON TRUCKTRAILERBOOM.
A126: CONCRETE PUMP TRAILER | B126: OPERATOR | C126: CONCRETE PUMP TRAILERTRUCK | D126: MONITOR THE PRESSURE AND CONSISTENCY OF THE CONCRETE WHILE CONTROLLING WITH A REMOTE BOX PUMP IS MOUNTED ON TRUCKTRAILERBOOM.
A127: CONCRETE PUMP TRAILERTRUCK | B127: OPERATOR | C127: CONCRETE PUMP TRAILERTRUCK | D127: MONITOR THE PRESSURE AND CONSISTENCY OF THE CONCRETE WHILE CONTROLLING WITH A REMOTE BOX PUMP IS MOUNTED ON TRUCKTRAILERBOOM.
A128: CONCRETE PUMP TRUCK | B128: OPERATOR | C128: CONCRETE PUMP TRAILERTRUCK | D128: MONITOR THE PRESSURE AND CONSISTENCY OF THE CONCRETE WHILE CONTROLLING WITH A REMOTE BOX PUMP IS MOUNTED ON TRUCKTRAILERBOOM.
A129: CONCRETE PUMPING | B129: OPERATOR | C129: CRANE GROUP 1 | D129: OPERATES A CRANE DRAGLINE ETC. TO HOIST AND MOVE MATERIALS RAISE AND LOWER HEAVY WEIGHTS OPERATIONS MAY INVOLVE USE OF DRAG BUCKET CLAMSHELL ORANGE PEEL AND OTHER RELATED ATTACHMENTS.
A130: CONCRETE SAW | B130: OPERATOR | C130: CONCRETE SAW | D130: STEERS CONCRETE SAW MACHINE WHICH CUTS JOINTS IN PAVEMENTS OR LOOPS IN ROADWAY BY MEANS OF AN ENGINE POWERED ROTARY BLADE.
A131: CONCRETE SAW OPERATOR | B131: OPERATOR | C131: CONCRETE SAW | D131: STEERS CONCRETE SAW MACHINE WHICH CUTS JOINTS IN PAVEMENTS OR LOOPS IN ROADWAY BY MEANS OF AN ENGINE POWERED ROTARY BLADE.
A132: CONCRETE SCREED | B132: OPERATOR | C132: CONCRETE SCREED | D132: OPERATES A SELFPROPELLED MACHINE THAT STRIKES OFF AND FINISHES CONCRETE TO ENSURE PROPER LEVEL.
A133: CONCRETE SLIPFORM MACHINE | B133: OPERATOR | C133: CONCRETE SLIPFORM MACHINE | D133: OPERATES A MACHINE FOR PLACING CURBGUTTER BARRIER WALL OR SIDEWALK WITH CONCRETE ADJUSTS SENSORS ON THE MACHINE TO CONTROL HORIZONTAL AND VERTICAL ALIGNMENT
A134: CONCRETE TRAILER PUMP HYDRAULIC CONCRETE PUMP | B134: OPERATOR | C134: CONCRETE PUMP TRAILERTRUCK | D134: MONITOR THE PRESSURE AND CONSISTENCY OF THE CONCRETE WHILE CONTROLLING WITH A REMOTE BOX PUMP IS MOUNTED ON TRUCKTRAILERBOOM.
A135: CONCRETEASPHALT CRUSHER | B135: OPERATOR | C135: CRUSHER | D135: OPERATES A TRUCK MOUNTED DEVICE TO BREAK UP ROADWAY MATERIAL.
A136: CONCRETETHERMO GRINDER | B136: OPERATOR | C136: LARGE POWER TOOL OPERATOR | D136: OPERATES STAND BEHIND AND PUSH HAND TOOLS DRIVEN BY COMPRESSED AIR GASOLINE OR ELECTRICAL POWER TO PERFORM SUCH WORK AS MOWERS SAWS AND TOOLS USED FOR BREAKING OLD PAVEMENT LOOSENING OR DIGGING HARD EARTH TRIMMING BOTTOM AND SIDES OF TRENCHES BREAKING LARGE ROCKS DRIVING SHEETING CHIPPING CONCRETE TRIMMING OR CUTTING STONE CAULKING STEEL PLATES.
A137: CONSTRUCTION ELECTRICIAN | B137: CRAFTMAN | C137: ELECTRICIAN | D137: PERFORMS A VARIETY OF ELECTRICAL TRADE FUNCTIONS SUCH AS INSTALLATION MAINTENANCE AND REPAIR FOR THE GENERATION DISTRIBUTION AND UTILIZATION OF ELECTRICAL ENERGY PLANS AND EXECUTES THE LAYOUT OF ELECTRICAL CONDUIT WIRING SYSTEMS SWITCHPANELS CIRCUIT BREAKERS CONTROLLERS AND OTHER ELECTRICAL TRANSMISSION EQUIPMENT UTILIZES A VARIETY OF ELECTRICAL HAND TOOLS MEASURING AND TESTING DEVICES.
A138: CONSTRUCTION LABORER | B138: LABORER | C138: COMMON OR GENERAL | D138: UNSKILLED OR SEMISKILLED LEVEL OF LABORER. MAY WORK IN MANY DIFFERENT FIELDS BUT HAS MINIMAL OR LIMITED EXPERIENCE.
A139: CONSTRUCTION SPECIALIST | B139: LABORER | C139: COMMON OR GENERAL | D139: UNSKILLED OR SEMISKILLED LEVEL OF LABORER. MAY WORK IN MANY DIFFERENT FIELDS BUT HAS MINIMAL OR LIMITED EXPERIENCE.
A140: CORE DRILL | B140: OPERATOR | C140: CORE DRILL | D140: OPERATES CORE DRILLING EQUIPMENT TO DRILL HOLES OF A SPECIFIED SIZE IN A CONCRETE WALL OR SLAB
A141: CORE DRILLING OPERATOR | B141: OPERATOR | C141: CORE DRILL | D141: OPERATES CORE DRILLING EQUIPMENT TO DRILL HOLES OF A SPECIFIED SIZE IN A CONCRETE WALL OR SLAB
A142: CRANE GROUP 1 | B142: OPERATOR | C142: CRANE GROUP 1 | D142: OPERATES A CRANE DRAGLINE ETC. TO HOIST AND MOVE MATERIALS RAISE AND LOWER HEAVY WEIGHTS OPERATIONS MAY INVOLVE USE OF DRAG BUCKET CLAMSHELL ORANGE PEEL AND OTHER RELATED ATTACHMENTS.
A143: CRANE GROUP 2 | B143: OPERATOR | C143: CRANE GROUP 2 | D143: OPERATES A CRANE DRAGLINE ETC. TO HOIST AND MOVE MATERIALS RAISE AND LOWER HEAVY WEIGHTS OPERATIONS MAY INVOLVE USE OF DRAG BUCKET CLAMSHELL ORANGE PEEL AND OTHER RELATED ATTACHMENTS.
A144: CRANEDERRICKDRAGLINE | B144: OPERATOR | C144: CRANE GROUP 1 | D144: OPERATES A CRANE DRAGLINE ETC. TO HOIST AND MOVE MATERIALS RAISE AND LOWER HEAVY WEIGHTS OPERATIONS MAY INVOLVE USE OF DRAG BUCKET CLAMSHELL ORANGE PEEL AND OTHER RELATED ATTACHMENTS.
A145: CRANES WITH 3 DRUMS WHEN 3RD DRUM IS RIGGED FOR WORK | B145: OPERATOR | C145: CRANE GROUP 1 | D145: OPERATES A CRANE DRAGLINE ETC. TO HOIST AND MOVE MATERIALS RAISE AND LOWER HEAVY WEIGHTS OPERATIONS MAY INVOLVE USE OF DRAG BUCKET CLAMSHELL ORANGE PEEL AND OTHER RELATED ATTACHMENTS.
A146: CRANES WITH BOOM LENGTH LESS THAN 150 FEET WITH OR WITHOUT JIB | B146: OPERATOR | C146: CRANE GROUP 2 | D146: OPERATES A CRANE DRAGLINE ETC. TO HOIST AND MOVE MATERIALS RAISE AND LOWER HEAVY WEIGHTS OPERATIONS MAY INVOLVE USE OF DRAG BUCKET CLAMSHELL ORANGE PEEL AND OTHER RELATED ATTACHMENTS.
A147: CRASH TRUCK DRIVER | B147: TRUCK DRIVER | C147: TRAFFIC CONTROL SPECIALIST | D147: INSTALLS AND SETS UP TEMPORARY TRAFFIC CONTROL DEVICES. ENSURES LANE CLOSURES ARE SET UP AND MAINTAINED PROPERLY. PROVIDES PROPER MAINTENANCE OF TRAFFIC USING APPROPRIATE ADVANCED WARNING DEVICES WITHIN THE APPLICABLE CONSTRUCTION OPERATION ZONES.
A148: CREW BOAT OPERATOR | B148: LABORER | C148: CREW BOAT OPERATOR | D148: Required to have the knowledge and skill to safely operate a boat less than 35 feet in length that ferries workers, equipment, tools and materials to different locations around a jobsite. Is competent in seamanship and understands US Coast Guard rules and regulations for operating a boat in navigable waters. Required to tend to boat lines and tie up boats using various ropes and knots. Understands and is able to operate navigational equipment.
A149: CRUSHER | B149: OPERATOR | C149: CRUSHER | D149: OPERATES A TRUCK MOUNTED DEVICE TO BREAK UP ROADWAY MATERIAL.
A150: CURB ENGRAVOR | B150: CRAFTMAN | C150: CEMENT MASON | D150: LAYS OUT WORK FROM PLANS AND SETS UP TEMPLATE AND GUIDELINES LAYS BRICK CONCRETE BLOCK CLAY TILES OR ARCHITECTURAL ROADWAY BRICK PAVERS IN CONSTRUCTION AND USES MORTAR OF VARIOUS TYPES.
A151: CUTTERCHIPPER MACH | B151: OPERATOR | C151: CUTTERCHIPPER MACHINE | D151: OPERATES EQUIPMENT USED FOR CHIPPING AND GRINDING TREES AND LIMBS
A152: CUTTERCHIPPER MACHINE | B152: OPERATOR | C152: CUTTERCHIPPER MACHINE | D152: OPERATES EQUIPMENT USED FOR CHIPPING AND GRINDING TREES AND LIMBS
A153: DECK HAND | B153: LABORER | C153: DECK HAND | D153: Required to tend to boat lines, tie up boats and barges using various ropes and knots, sweep and clean decks on boats, spotter for tugboat captain during maneuvering, assist in loading, and unloading and securing of loads for transportation.
A154: DESILTER | B154: OPERATOR | C154: VACUUM TRUCK | D154: OPERATES EQUIPMENT THAT REMOVES SAND WATER AND OBJECTS FROMNBSPPIPE BY A VACUUMING SYSTEM
A155: DETECTABLE WARNING INSTALLER | B155: LABORER | C155: DETECTABLE WARNING INSTALLER | D155: INSTALLATION OF CURB RAMPS AND DETECTABLE WARNING MATS. THIS WORK MAY INVOLVE THE USE OF ADHESIVES AND SMALL HAND TOOS SUCH AS SCRAPERS AND DRILLS.
A156: DETECTABLE WARNING INSTALLER | B156: LABORER | C156: DETECTABLE WARNING INSTALLER | D156: INSTALLATION OF CURB RAMPS AND DETECTABLE WARNING MATS. THIS WORK MAY INVOLVE THE USE OF ADHESIVES AND SMALL HAND TOOS SUCH AS SCRAPERS AND DRILLS.
A157: DIRECTIONAL BORE | B157: OPERATOR | C157: BORING MACHINE | D157: OPERATES A MACHINE WHICH BORES HORIZONTALLY UNDER ROADWAYS ETC. TO MAKE WAY FOR PIPE CABLE ETC.
A158: DIRECTIONAL BORE LOCATOR | B158: LABORER | C158: BORING LOCATOR | D158: LOCATES THE DRILL HEAD AND NAVIGATES THE DIRECTON OF THE BORE.
A159: DIRECTIONAL BORE MACHINE | B159: OPERATOR | C159: BORING MACHINE | D159: OPERATES A MACHINE WHICH BORES HORIZONTALLY UNDER ROADWAYS ETC. TO MAKE WAY FOR PIPE CABLE ETC.
A160: DIRECTIONAL BORING DRILL | B160: OPERATOR | C160: BORING MACHINE | D160: OPERATES A MACHINE WHICH BORES HORIZONTALLY UNDER ROADWAYS ETC. TO MAKE WAY FOR PIPE CABLE ETC.
A161: DIRECTIONAL BORING LOCATOR | B161: LABORER | C161: BORING LOCATOR | D161: LOCATES THE DRILL HEAD AND NAVIGATES THE DIRECTON OF THE BORE.
A162: DIRECTIONAL BORING MACHINE | B162: OPERATOR | C162: BORING MACHINE | D162: OPERATES A MACHINE WHICH BORES HORIZONTALLY UNDER ROADWAYS ETC. TO MAKE WAY FOR PIPE CABLE ETC.
A163: DIRECTIONAL BORING TECHNICIAN | B163: LABORER | C163: BORING GROUND TECHNICIAN | D163: LOCATES UTILITIES VIA HAND DIGS OPERATES RECOVERY TANKTRAILER FOR REMOVAL OF SLURRY MIX BORING GELSLURRY OPERATES EQUIPMENT ASSOCIATED WITH BORING GELSLURRY SLURRY TRUCK WHEN APPLICAGLE AND CONNECTS PIPE TO ROD.
A164: DIRECTIONAL DRILL | B164: OPERATOR | C164: BORING MACHINE | D164: OPERATES A MACHINE WHICH BORES HORIZONTALLY UNDER ROADWAYS ETC. TO MAKE WAY FOR PIPE CABLE ETC.
A165: DIRECTIONAL DRILL LOCATOR | B165: LABORER | C165: BORING LOCATOR | D165: LOCATES THE DRILL HEAD AND NAVIGATES THE DIRECTON OF THE BORE.
A166: DISTRIBUTOR | B166: OPERATOR | C166: DISTRIBUTOR | D166: OPERATES DISTRIBUTOR THAT SPREADS MATERIAL EVENLY ACROSS ROADWAY; INCLUDES SAND AGGREGATE OR BITUMINOUS MATERIALS; SETS SPRAY BAR AND OPERATES VALVES AND LEVERS TO CONTROL DISTRIBUTION OF OIL OR BITUMINOUS LIQUID PRIME TACK ETC.
A167: DISTRIBUTOR TRUCK | B167: OPERATOR | C167: DISTRIBUTOR | D167: OPERATES DISTRIBUTOR THAT SPREADS MATERIAL EVENLY ACROSS ROADWAY; INCLUDES SAND AGGREGATE OR BITUMINOUS MATERIALS; SETS SPRAY BAR AND OPERATES VALVES AND LEVERS TO CONTROL DISTRIBUTION OF OIL OR BITUMINOUS LIQUID PRIME TACK ETC.
A168: DISTRIBUTOR TRUCK DRIVER | B168: OPERATOR | C168: DISTRIBUTOR | D168: OPERATES DISTRIBUTOR THAT SPREADS MATERIAL EVENLY ACROSS ROADWAY; INCLUDES SAND AGGREGATE OR BITUMINOUS MATERIALS; SETS SPRAY BAR AND OPERATES VALVES AND LEVERS TO CONTROL DISTRIBUTION OF OIL OR BITUMINOUS LIQUID PRIME TACK ETC.
A169: DITCH WITCH | B169: OPERATOR | C169: LARGE POWER TOOL OPERATOR | D169: OPERATES STAND BEHIND AND PUSH HAND TOOLS DRIVEN BY COMPRESSED AIR GASOLINE OR ELECTRICAL POWER TO PERFORM SUCH WORK AS MOWERS SAWS AND TOOLS USED FOR BREAKING OLD PAVEMENT LOOSENING OR DIGGING HARD EARTH TRIMMING BOTTOM AND SIDES OF TRENCHES BREAKING LARGE ROCKS DRIVING SHEETING CHIPPING CONCRETE TRIMMING OR CUTTING STONE CAULKING STEEL PLATES..
A170: DIVE TENDER | B170: LABORER | C170: DIVER TENDER | D170: LAND BASED ACTS AS AN ASSISTANT OR WATCH OUT FOR THE DIVER.
A171: DIVER | B171: CRAFTMAN | C171: DIVER | D171: WORKS PRIMARILY UNDERWATER OR AT THE WATERS SURFACE. PRIMARY EQUIPMENT UTILIZED IS SCUBA GEAR ANDOR SNORKEL. PERFORMS NUMEROUS DUTIES MOSTLY WITH VARIOUS TYPES OF HAND TOOLS.
A172: DIVER PIPELAYER | B172: CRAFTMAN | C172: DIVER | D172: WORKS PRIMARILY UNDERWATER OR AT THE WATERS SURFACE. PRIMARY EQUIPMENT UTILIZED IS SCUBA GEAR ANDOR SNORKEL. PERFORMS NUMEROUS DUTIES MOSTLY WITH VARIOUS TYPES OF HAND TOOLS.
A173: DRAINAGE REHAB TECHNICIAN | B173: CRAFTMAN | C173: DRAINAGE REHAB TECHNICIAN | D173: CLEAN/DESILT DRAINAGE STRUCTURES/STORM DRAINS/SANITARY PIPES; DOCUMENT VISUAL INSPECTION OF INTERIOR OF DRAINAGE STRUCTURES/STORM DRAINS/SANITARY PIPES BY MEANS OF VIDEO TAPE/LASER PROFILING; REPAIR AREAS IDENTIFIED AS BEING STRUCTURALLY COMPROMISING WITHIN INTERIOR OF DRAINAGE STRUCTURES/STORM DRAINS/SANITARY PIPES; REPAIR WORK INCLUDES BUT NOT LIMITED TO CHEMICAL GROUTING OR INSTALLATION OF SECTIONAL LINER REPLACEMENT/BLADDER WHICH CONSISTS OF INSTALLING LINER MATERIAL OVER MANHOLE OR CATCH BASIN; PUMPING HOT WATER TO PUSH LINER INTO THE EXISTING DRAINAGE STRUCTURES/STORM DRAINS/SANITARY PIPES; WHEN REQUIRED QUANTITY OF WATER FILLS SECTIONAL LINER REPLACEMENT/BLADDER, A CURING PERIOD IS ALLOCATED TO ENSURE ADHERENCE OF SECTIONAL LINER REPLACEMENT/BLADDER WITHIN INTERIOR OF DRAINAGE STRUCTURES/STORM DRAINS/SANITARY PIPES.
A174: DREDGE OPERATOR | B174: OPERATOR | C174: DREDGE OPERATOR | D174: OPERATES A DREDGE TO REMOVE SAND GRAVEL OR OTHER MATERIALS IN ORDER TO EXCAVATE AND MAINTAIN A NAVIGABLE CHANNEL IN WATERWAYS.
A175: DRILL LOCATOR | B175: LABORER | C175: BORING LOCATOR | D175: LOCATES THE DRILL HEAD AND NAVIGATES THE DIRECTON OF THE BORE.
A176: DRILL MACHINE | B176: OPERATOR | C176: DRILL | D176: SETS UP AND OPERATES DRILLING MACHINE THAT DRILLS HOLES THROUGH CONCRETE ROCK ETC. LEVELS MACHINE BY PLACING TIMBERS UNDER WHEELS INSETS AND FASTENS DRILL STEEL IN CHUCK ADJUSTS ANGLE OF DRILL TOWER AND BOLTS IT IN POSITION CONTROLS DRILLING BY MOVING LEVERS.
A177: DRILL RIG | B177: OPERATOR | C177: DRILL | D177: SETS UP AND OPERATES DRILLING MACHINE THAT DRILLS HOLES THROUGH CONCRETE ROCK ETC. LEVELS MACHINE BY PLACING TIMBERS UNDER WHEELS INSETS AND FASTENS DRILL STEEL IN CHUCK ADJUSTS ANGLE OF DRILL TOWER AND BOLTS IT IN POSITION CONTROLS DRILLING BY MOVING LEVERS.
A178: DRILL SHAFT DRILLER | B178: OPERATOR | C178: DRILL | D178: SETS UP AND OPERATES DRILLING MACHINE THAT DRILLS HOLES THROUGH CONCRETE ROCK ETC. LEVELS MACHINE BY PLACING TIMBERS UNDER WHEELS INSETS AND FASTENS DRILL STEEL IN CHUCK ADJUSTS ANGLE OF DRILL TOWER AND BOLTS IT IN POSITION CONTROLS DRILLING BY MOVING LEVERS.
A179: DRILL SHAFT LABORER | B179: LABORER | C179: DRILL SHAFT MAN | D179: CONTINUOUSLY ENSURES THE PROPER RATIO OF SLURRY AND WATER IS ACHIEVED WHILE DRILLING OPERATION IS OCCURRING IN ORDER TO MAINTAIN STABILIZATION OF AREA ASSEMBLES AND INSTALLS CAGEFORM CONSTRUCTED OF REBAR STEEL INTO DRILLED AREAS INSTALLATION OF TREMI PRIOR TO CONCRETE PUMPINGINSTALLATION OPERATION IF APPLICABLE. TREMIE IS TUBING USED ON DEEP FOUNDATIONS IT IS LOWERED TO THE BOTTOM OF THE HOLE CONCRETE IS POURED FROM THE TRUCK CHUTE THROUGH TUBING AS CONCRETE RISES IN THE HOLE SO IS THE TUBING AND IS REMOVED WHEN THE HOLE IS FILLED.
A180: DRILL SHAFT MAN | B180: LABORER | C180: DRILL SHAFT MAN | D180: CONTINUOUSLY ENSURES THE PROPER RATIO OF SLURRY AND WATER IS ACHIEVED WHILE DRILLING OPERATION IS OCCURRING IN ORDER TO MAINTAIN STABILIZATION OF AREA ASSEMBLES AND INSTALLS CAGEFORM CONSTRUCTED OF REBAR STEEL INTO DRILLED AREAS INSTALLATION OF TREMI PRIOR TO CONCRETE PUMPINGINSTALLATION OPERATION IF APPLICABLE. TREMIE IS TUBING USED ON DEEP FOUNDATIONS IT IS LOWERED TO THE BOTTOM OF THE HOLE CONCRETE IS POURED FROM THE TRUCK CHUTE THROUGH TUBING AS CONCRETE RISES IN THE HOLE SO IS THE TUBING AND IS REMOVED WHEN THE HOLE IS FILLED.
A181: DRILL SHAFT OPERATOR | B181: OPERATOR | C181: DRILL | D181: SETS UP AND OPERATES DRILLING MACHINE THAT DRILLS HOLES THROUGH CONCRETE ROCK ETC. LEVELS MACHINE BY PLACING TIMBERS UNDER WHEELS INSETS AND FASTENS DRILL STEEL IN CHUCK ADJUSTS ANGLE OF DRILL TOWER AND BOLTS IT IN POSITION CONTROLS DRILLING BY MOVING LEVERS.
A182: DRILL SHAFT WORKER | B182: LABORER | C182: DRILL SHAFT MAN | D182: CONTINUOUSLY ENSURES THE PROPER RATIO OF SLURRY AND WATER IS ACHIEVED WHILE DRILLING OPERATION IS OCCURRING IN ORDER TO MAINTAIN STABILIZATION OF AREA ASSEMBLES AND INSTALLS CAGEFORM CONSTRUCTED OF REBAR STEEL INTO DRILLED AREAS INSTALLATION OF TREMI PRIOR TO CONCRETE PUMPINGINSTALLATION OPERATION IF APPLICABLE. TREMIE IS TUBING USED ON DEEP FOUNDATIONS IT IS LOWERED TO THE BOTTOM OF THE HOLE CONCRETE IS POURED FROM THE TRUCK CHUTE THROUGH TUBING AS CONCRETE RISES IN THE HOLE SO IS THE TUBING AND IS REMOVED WHEN THE HOLE IS FILLED.
A183: DRILLED SHAFT MAN | B183: LABORER | C183: DRILL SHAFT MAN | D183: CONTINUOUSLY ENSURES THE PROPER RATIO OF SLURRY AND WATER IS ACHIEVED WHILE DRILLING OPERATION IS OCCURRING IN ORDER TO MAINTAIN STABILIZATION OF AREA ASSEMBLES AND INSTALLS CAGEFORM CONSTRUCTED OF REBAR STEEL INTO DRILLED AREAS INSTALLATION OF TREMI PRIOR TO CONCRETE PUMPINGINSTALLATION OPERATION IF APPLICABLE. TREMIE IS TUBING USED ON DEEP FOUNDATIONS IT IS LOWERED TO THE BOTTOM OF THE HOLE CONCRETE IS POURED FROM THE TRUCK CHUTE THROUGH TUBING AS CONCRETE RISES IN THE HOLE SO IS THE TUBING AND IS REMOVED WHEN THE HOLE IS FILLED.
A184: DRILLED SHAFT OPERATOR | B184: OPERATOR | C184: DRILL | D184: SETS UP AND OPERATES DRILLING MACHINE THAT DRILLS HOLES THROUGH CONCRETE ROCK ETC. LEVELS MACHINE BY PLACING TIMBERS UNDER WHEELS INSETS AND FASTENS DRILL STEEL IN CHUCK ADJUSTS ANGLE OF DRILL TOWER AND BOLTS IT IN POSITION CONTROLS DRILLING BY MOVING LEVERS.
A185: DRILLER | B185: OPERATOR | C185: DRILL | D185: SETS UP AND OPERATES DRILLING MACHINE THAT DRILLS HOLES THROUGH CONCRETE ROCK ETC. LEVELS MACHINE BY PLACING TIMBERS UNDER WHEELS INSETS AND FASTENS DRILL STEEL IN CHUCK ADJUSTS ANGLE OF DRILL TOWER AND BOLTS IT IN POSITION CONTROLS DRILLING BY MOVING LEVERS.
A186: DRILLING MACHINE | B186: OPERATOR | C186: DRILL | D186: SETS UP AND OPERATES DRILLING MACHINE THAT DRILLS HOLES THROUGH CONCRETE ROCK ETC. LEVELS MACHINE BY PLACING TIMBERS UNDER WHEELS INSETS AND FASTENS DRILL STEEL IN CHUCK ADJUSTS ANGLE OF DRILL TOWER AND BOLTS IT IN POSITION CONTROLS DRILLING BY MOVING LEVERS.
A187: DRYWALL INSTALLERFINISHER | B187: LABORER | C187: DRYWALL INSTALLERFINISHER | D187: APPLIES FINISHES TO DRYWALL SUCH AS MUD OR PLASTER. INVOLVES TAPING MUDDING AND SANDING CAN INCLUDE INTERIOR AND EXTERIOR WALLS AND CEILINGS.
A188: DUMP TRUCK | B188: TRUCK DRIVER | C188: DUMP TRUCK | D188: DRIVES A LIGHT OR HEAVY DUTY TRUCK WITH TANDEM REARAXLE OR SINGLE REARAXLE WITH A DUMPING BED USED IN HAULING MATERIALS.
A189: EARTH MOVER | B189: OPERATOR | C189: SCRAPER | D189: OPERATES MACHINERY THAT SCRAPES AND TRANSPORTS EARTHWORK MATERIAL.
A190: EARTH WALL ERECTOR | B190: CRAFTMAN | C190: WALL ERECTOR | D190: HOLDS, ALIGNS, PLUMBS, SETS VERTICALLY TO ELEVATION WALL SECTIONS OR PRECAST PANELS; TYING OF BACKSTRAPS; DRIVES STAKES FOR BRACES; GRADE, FORM AND POUR LEVELING PAD; COMPACTION OF BACKFILL
A191: ELECTRIC OR OTHERWISE | B191: OPERATOR | C191: CRANE GROUP 1 | D191: OPERATES A CRANE DRAGLINE ETC. TO HOIST AND MOVE MATERIALS RAISE AND LOWER HEAVY WEIGHTS OPERATIONS MAY INVOLVE USE OF DRAG BUCKET CLAMSHELL ORANGE PEEL AND OTHER RELATED ATTACHMENTS.
A192: ELECTRICAL INSTALLER | B192: CRAFTMAN | C192: ELECTRICIAN | D192: PERFORMS A VARIETY OF ELECTRICAL TRADE FUNCTIONS SUCH AS INSTALLATION MAINTENANCE AND REPAIR FOR THE GENERATION DISTRIBUTION AND UTILIZATION OF ELECTRICAL ENERGY PLANS AND EXECUTES THE LAYOUT OF ELECTRICAL CONDUIT WIRING SYSTEMS SWITCHPANELS CIRCUIT BREAKERS CONTROLLERS AND OTHER ELECTRICAL TRANSMISSION EQUIPMENT UTILIZES A VARIETY OF ELECTRICAL HAND TOOLS MEASURING AND TESTING DEVICES.
A193: ELECTRICAL LABORER | B193: LABORER | C193: ELECTRICAL LABORER | D193: HELPS ELECTRICIAN BY PERFORMING DUTIES REQUIREING LESS SKILL. DUTIES INCLUDE USING SUPPLYING OR HOLDING MATERIALS OR TOOLS AND CLEANING WORK AREA AND EQUIPMENT. RESTRICTED TO MOVEMENT AND HANDLING OF MATERIALS EXCLUDES ANY INSTALLATION.
A194: ELECTRICAL MECHANIC | B194: CRAFTMAN | C194: ELECTRICIAN | D194: PERFORMS A VARIETY OF ELECTRICAL TRADE FUNCTIONS SUCH AS INSTALLATION MAINTENANCE AND REPAIR FOR THE GENERATION DISTRIBUTION AND UTILIZATION OF ELECTRICAL ENERGY PLANS AND EXECUTES THE LAYOUT OF ELECTRICAL CONDUIT WIRING SYSTEMS SWITCHPANELS CIRCUIT BREAKERS CONTROLLERS AND OTHER ELECTRICAL TRANSMISSION EQUIPMENT UTILIZES A VARIETY OF ELECTRICAL HAND TOOLS MEASURING AND TESTING DEVICES.
A195: ELECTRICIAN | B195: CRAFTMAN | C195: ELECTRICIAN | D195: PERFORMS A VARIETY OF ELECTRICAL TRADE FUNCTIONS SUCH AS INSTALLATION MAINTENANCE AND REPAIR FOR THE GENERATION DISTRIBUTION AND UTILIZATION OF ELECTRICAL ENERGY PLANS AND EXECUTES THE LAYOUT OF ELECTRICAL CONDUIT WIRING SYSTEMS SWITCHPANELS CIRCUIT BREAKERS CONTROLLERS AND OTHER ELECTRICAL TRANSMISSION EQUIPMENT UTILIZES A VARIETY OF ELECTRICAL HAND TOOLS MEASURING AND TESTING DEVICES.
A196: ELECTRICIAN HELPER | B196: LABORER | C196: ELECTRICAL LABORER | D196: HELPS ELECTRICIAN BY PERFORMING DUTIES REQUIREING LESS SKILL. DUTIES INCLUDE USING SUPPLYING OR HOLDING MATERIALS OR TOOLS AND CLEANING WORK AREA AND EQUIPMENT. RESTRICTED TO MOVEMENT AND HANDLING OF MATERIALS EXCLUDES ANY INSTALLATION.
A197: ELECTROHYDRAULIC TECHNICIAN | B197: CRAFTMAN | C197: MECHANIC | D197: ASSEMBLES DIASSEMBLES SETS UP DIAGNOSES ADJUST AND MAINTAINS CONSTRUCTION EQUIPMENT ON THE PROJECT. MAY WELD PARTS OR STEEL TO REPAIR EQUIPMENT.
A198: ELECTRONICS INSTALLER | B198: LABORER | C198: ELECTRONICS INSTALLER | D198: SPECIALIZES OR PARTICIPATES IN DESIGN INSTALLATION, MAINTENANCE, RIGGING, OR REPAIR TOWER BASED ELECTRONIC TRANSMISSION EQUIPMENT UTILIZED FOR COMMUNICATION, NAVIGATIONAL, OR DIGITAL DATA. SELF-SUFFICIENT AND CAPABLE CLIMBING HEIGHTS SAFELY FOR SELF AND OTHERS. PROFICIENT IN ANTENNNA AND OTHER INSTALLATION TYPES. ABLE TO BE TRAINED OR CERTIFIED IN SAFETY/RESCUE. WILL SUPPORT MORE EXPERIENCED TECHNICIANS’ INSTALLATION OF VOICE, DATA, VIDEO, OR OTHER COMMUNICATION TRANSMISSION METHODOLOGY AS REQUIRED ON TRANSPORTATION PROJECTS.
A199: ELECTRONICS TECHNICIAN | B199: CRAFTMAN | C199: ITS TECHNICIAN | D199: PREPARES ELECTRONIC AND FIBER OPTIC CABLING FORM INTERFACE WITH ELECTRONIC IN ENCLOSURES RACKS OR MOUNTS. TESTS TROUBLE SHOOTS ANDINSTALLS ITS DEVICES SUCH AS CAMERAS ETC.
A200: END DUMP OPERATOR | B200: TRUCK DRIVER | C200: DUMP TRUCK | D200: DRIVES A LIGHT OR HEAVY DUTY TRUCK WITH TANDEM REARAXLE OR SINGLE REARAXLE WITH A DUMPING BED USED IN HAULING MATERIALS.
... 346 more rows

Sheet Apprenticeship Detail (hidden)
A1: Apprenticeship Record:
A3: Contractor's Name: | B3: =IF(#REF!="","",#REF!) ->  | F3: Address: | H3: =IF(#REF!="","",#REF!) -> 
A5: Payroll Number: | B5: =IF(#REF!="","",#REF!) ->  | D5: Contract # | E5: =IF(#REF!="","",#REF!) ->  | F5: =#REF! ->  | H5: Project Name: | I5: =IF(#REF!="","",#REF!) -> 
A7: For Week Ending: | B7: =IF(#REF!="","",#REF!) ->  | C7: =#REF! ->  | D7: FIN # | E7: =IF(#REF!="","",#REF!) ->  | F7: =#REF! ->  | H7: Project Location: | I7: =IF(#REF!="","",#REF!) -> 
C9: Provide apprentice program name registered with the Office of Apprenticeship, Employment, and Training Administration, United State Department of Labor ("OA"), or a State Apprenticeship Agency ("SAA") recognized by the Department of Labor, and each trainee/worker registered with a program.
A10: Apprentice Program Name | C10: Apprentice Name | E10: Title of Labor/Mechanic Classificaiton | H10: Registered
H12: FALSE | I12: OA | J12: FALSE | K12: SAA
H13: FALSE | I13: OA | J13: FALSE | K13: SAA
H14: FALSE | I14: OA | J14: FALSE | K14: SAA
H15: FALSE | I15: OA | J15: FALSE | K15: SAA
H16: FALSE | I16: OA | J16: FALSE | K16: SAA
H17: FALSE | I17: OA | J17: FALSE | K17: SAA
H18: FALSE | I18: OA | J18: FALSE | K18: SAA
H19: FALSE | I19: OA | J19: FALSE | K19: SAA
H20: FALSE | I20: OA | J20: FALSE | K20: SAA
H21: FALSE | I21: OA | J21: FALSE | K21: SAA
H22: FALSE | I22: OA | J22: FALSE | K22: SAA
H23: FALSE | I23: OA | J23: FALSE | K23: SAA
H24: FALSE | I24: OA | J24: FALSE | K24: SAA
H25: FALSE | I25: OA | J25: FALSE | K25: SAA
H26: FALSE | I26: OA | J26: FALSE | K26: SAA
H27: FALSE | I27: OA | J27: FALSE | K27: SAA
H28: FALSE | I28: OA | J28: FALSE | K28: SAA
H29: FALSE | I29: OA | J29: FALSE | K29: SAA
H30: FALSE | I30: OA | J30: FALSE | K30: SAA
H31: FALSE | I31: OA | J31: FALSE | K31: SAA
